{"text_format":"1","workbook":"xlsx","n_sheets":5,"sheets":["👩🏻‍🏫 Bienvenue !","💶 Recettes et dépenses","📊 Synthèse","🧾 Facture","coulisses"],"not_rendered":{"charts":1,"images":1,"macros":1,"external_links":0,"defined_names":6,"comments":0,"pivot_tables":0},"unopened":[],"bounds":{"document_bytes":16777216,"sheet_cells":100000,"rows_first":2000,"rows_last":500,"rows_between":2000,"halvings":0,"cell_chars":16384,"cell_head_chars":4096},"cells_cut":0,"cells_raw":0,"read":"whole","date_system":"1900"}

{"sheet":"👩🏻‍🏫 Bienvenue !","index":0,"n_rows":25,"n_cols":11,"rows_kept":25,"cut":false,"hidden":false,"merged":[[21,3,21,8],[21,1,23,1],[24,1,24,8],[23,3,23,8],[22,3,22,8],[4,3,4,8],[9,3,9,8],[13,3,13,8],[17,3,17,8],[19,3,19,8]]}
[null,null,null,null,null,"Bienvenue",{"$f":"$I$7&\" !\"","v":" !"},null,{"$f":"K7","v":0}]
[]
[]
[]
[null,"👩🏻‍🏫",null,"Bonjour et merci d'avoir téléchargé ce fichier ! Je m'appelle Laure, et vous ? Tapez votre nom dans la case violette et choisissez votre visage dans la liste en cliquant sur l'emoji !"]
[]
[null,null,null,null,null,null,"Bonjour ! Je m'appelle"]
[]
[null,{"$f":"$B$5","v":"👩🏻‍🏫"},null,{"$f":"\"Enchantée \"&I7&\" !\"","v":"Enchantée  !"}]
[null,{"$f":"$B$5","v":"👩🏻‍🏫"},null,"Comment s'appelle votre micro-entreprise ? "]
[]
[null,null,null,null,null,null,"Ma micro-entreprise s'appelle",null,null,null,{"$f":"$K$7","v":0}]
[]
[null,{"$f":"B5","v":"👩🏻‍🏫"},null,{"$f":"I12&\" ? Joli nom !\" & \" Dites-moi l'année pour laquelle vous allez faire votre comptabilité.\"","v":" ? Joli nom ! Dites-moi l'année pour laquelle vous allez faire votre comptabilité."}]
[]
[null,null,null,null,null,null,null,null,null,null,{"$f":"$K$7","v":0}]
[]
[null,{"$f":"B5","v":"👩🏻‍🏫"},null,"Ok, c'est noté ! Pour utiliser ce fichier, il vous suffit de saisir vos recettes et vos dépenses dans l'onglet \"💶 Recettes et dépenses\" tout en bas de l'écran. Et vous avez ensuite une synthèse de votre chiffre d'affaires, de vos dépenses et de votre profit dans l'onglet \"📊 Synthèse\". Vous pouvez également personnaliser un modèle de facture dans l'onglet dédié."]
[]
[null,null,null,"OK, je vois.",null,null,null,null,null,null,{"$f":"$K$7","v":0}]
[]
[null,{"$f":"B5","v":"👩🏻‍🏫"},null,"Pour rappel, n'oubliez pas d'imprimer en PDF l'onglet \"Recettes et dépenses\" à chaque déclaration, pour être en règle. La date de création du fichier PDF obtenu fera foi en cas de contrôle."]
[null,null,null,{"$f":" \"Je vous souhaite plein de succès avec\"&\" \"&I12&\" ! \"","v":"Je vous souhaite plein de succès avec  ! "}]
[null,null,null,{"$f":"\"A bientôt, \"&I7&\" !\"","v":"A bientôt,  !"}]
[null,"Ce contenu est soumis au droit d’auteur et est la propriété de Comptes & Formules. Toute représentation ou reproduction non autorisée est passible d’une action en contrefaçon. "]

{"sheet":"💶 Recettes et dépenses","index":1,"n_rows":606,"n_cols":15,"rows_kept":606,"cut":false,"hidden":false,"merged":[[3,17,3,20],[3,14,4,14],[3,7,4,7]]}
[null,null,{"$f":"'👩🏻‍🏫 Bienvenue !'!K7","v":0},null,{"$f":" \"La comptabilité de votre micro-entreprise \"&'👩🏻‍🏫 Bienvenue !'!I12&\" - \"&'👩🏻‍🏫 Bienvenue !'!I16","v":"La comptabilité de votre micro-entreprise  - "}]
[]
[]
[null,null,null,null,null,null,"Vos recettes 💰",{"$f":"SUM(H7:H606)","v":0},null,null,null,null,null,"Vos dépenses 🧾",{"$f":"SUM(O7:O606)","v":0}]
[]
["#",null,"Date","Mode de paiement","N°","Client","Libellé","Montant",null,null,"Date","Mode de paiement","N°","Libellé (Fournisseur, nature de la dépense)","Montant"]
[1,{"$f":"MONTH(Tableau1[[#This Row],[Date]])","v":1},null,null,null,null,null,null,null,{"$f":"MONTH(Tableau2[[#This Row],[Date]])","v":1}]
[2,{"$f":"MONTH(Tableau1[[#This Row],[Date]])","v":1},null,null,null,null,null,null,null,{"$f":"MONTH(Tableau2[[#This Row],[Date]])","v":1}]
[3,{"$f":"MONTH(Tableau1[[#This Row],[Date]])","v":1},null,null,null,null,null,null,null,{"$f":"MONTH(Tableau2[[#This Row],[Date]])","v":1}]
[4,{"$f":"MONTH(Tableau1[[#This Row],[Date]])","v":1},null,null,null,null,null,null,null,{"$f":"MONTH(Tableau2[[#This Row],[Date]])","v":1}]
[5,{"$f":"MONTH(Tableau1[[#This Row],[Date]])","v":1},null,null,null,null,null,null,null,{"$f":"MONTH(Tableau2[[#This Row],[Date]])","v":1}]
[6,{"$f":"MONTH(Tableau1[[#This Row],[Date]])","v":1},null,null,null,null,null,null,null,{"$f":"MONTH(Tableau2[[#This Row],[Date]])","v":1}]
[7,{"$f":"MONTH(Tableau1[[#This Row],[Date]])","v":1},null,null,null,null,null,null,null,{"$f":"MONTH(Tableau2[[#This Row],[Date]])","v":1}]
[8,{"$f":"MONTH(Tableau1[[#This Row],[Date]])","v":1},null,null,null,null,null,null,null,{"$f":"MONTH(Tableau2[[#This Row],[Date]])","v":1}]
[9,{"$f":"MONTH(Tableau1[[#This Row],[Date]])","v":1},null,null,null,null,null,null,null,{"$f":"MONTH(Tableau2[[#This Row],[Date]])","v":1}]
[10,{"$f":"MONTH(Tableau1[[#This Row],[Date]])","v":1},null,null,null,null,null,null,null,{"$f":"MONTH(Tableau2[[#This Row],[Date]])","v":1}]
[11,{"$f":"MONTH(Tableau1[[#This Row],[Date]])","v":1},null,null,null,null,null,null,null,{"$f":"MONTH(Tableau2[[#This Row],[Date]])","v":1}]
[12,{"$f":"MONTH(Tableau1[[#This Row],[Date]])","v":1},null,null,null,null,null,null,null,{"$f":"MONTH(Tableau2[[#This Row],[Date]])","v":1}]
[13,{"$f":"MONTH(Tableau1[[#This Row],[Date]])","v":1},null,null,null,null,null,null,null,{"$f":"MONTH(Tableau2[[#This Row],[Date]])","v":1}]
[14,{"$f":"MONTH(Tableau1[[#This Row],[Date]])","v":1},null,null,null,null,null,null,null,{"$f":"MONTH(Tableau2[[#This Row],[Date]])","v":1}]
[15,{"$f":"MONTH(Tableau1[[#This Row],[Date]])","v":1},null,null,null,null,null,null,null,{"$f":"MONTH(Tableau2[[#This Row],[Date]])","v":1}]
[16,{"$f":"MONTH(Tableau1[[#This Row],[Date]])","v":1},null,null,null,null,null,null,null,{"$f":"MONTH(Tableau2[[#This Row],[Date]])","v":1}]
[17,{"$f":"MONTH(Tableau1[[#This Row],[Date]])","v":1},null,null,null,null,null,null,null,{"$f":"MONTH(Tableau2[[#This Row],[Date]])","v":1}]
[18,{"$f":"MONTH(Tableau1[[#This Row],[Date]])","v":1},null,null,null,null,null,null,null,{"$f":"MONTH(Tableau2[[#This Row],[Date]])","v":1}]
[19,{"$f":"MONTH(Tableau1[[#This Row],[Date]])","v":1},null,null,null,null,null,null,null,{"$f":"MONTH(Tableau2[[#This Row],[Date]])","v":1}]
[20,{"$f":"MONTH(Tableau1[[#This Row],[Date]])","v":1},null,null,null,null,null,null,null,{"$f":"MONTH(Tableau2[[#This Row],[Date]])","v":1}]
[21,{"$f":"MONTH(Tableau1[[#This Row],[Date]])","v":1},null,null,null,null,null,null,null,{"$f":"MONTH(Tableau2[[#This Row],[Date]])","v":1}]
[22,{"$f":"MONTH(Tableau1[[#This Row],[Date]])","v":1},null,null,null,null,null,null,null,{"$f":"MONTH(Tableau2[[#This Row],[Date]])","v":1}]
[23,{"$f":"MONTH(Tableau1[[#This Row],[Date]])","v":1},null,null,null,null,null,null,null,{"$f":"MONTH(Tableau2[[#This Row],[Date]])","v":1}]
[24,{"$f":"MONTH(Tableau1[[#This Row],[Date]])","v":1},null,null,null,null,null,null,null,{"$f":"MONTH(Tableau2[[#This Row],[Date]])","v":1}]
[25,{"$f":"MONTH(Tableau1[[#This Row],[Date]])","v":1},null,null,null,null,null,null,null,{"$f":"MONTH(Tableau2[[#This Row],[Date]])","v":1}]
[26,{"$f":"MONTH(Tableau1[[#This Row],[Date]])","v":1},null,null,null,null,null,null,null,{"$f":"MONTH(Tableau2[[#This Row],[Date]])","v":1}]
[27,{"$f":"MONTH(Tableau1[[#This Row],[Date]])","v":1},null,null,null,null,null,null,null,{"$f":"MONTH(Tableau2[[#This Row],[Date]])","v":1}]
[28,{"$f":"MONTH(Tableau1[[#This Row],[Date]])","v":1},null,null,null,null,null,null,null,{"$f":"MONTH(Tableau2[[#This Row],[Date]])","v":1}]
[29,{"$f":"MONTH(Tableau1[[#This Row],[Date]])","v":1},null,null,null,null,null,null,null,{"$f":"MONTH(Tableau2[[#This Row],[Date]])","v":1}]
[30,{"$f":"MONTH(Tableau1[[#This Row],[Date]])","v":1},null,null,null,null,null,null,null,{"$f":"MONTH(Tableau2[[#This Row],[Date]])","v":1}]
[31,{"$f":"MONTH(Tableau1[[#This Row],[Date]])","v":1},null,null,null,null,null,null,null,{"$f":"MONTH(Tableau2[[#This Row],[Date]])","v":1}]
[32,{"$f":"MONTH(Tableau1[[#This Row],[Date]])","v":1},null,null,null,null,null,null,null,{"$f":"MONTH(Tableau2[[#This Row],[Date]])","v":1}]
[33,{"$f":"MONTH(Tableau1[[#This Row],[Date]])","v":1},null,null,null,null,null,null,null,{"$f":"MONTH(Tableau2[[#This Row],[Date]])","v":1}]
[34,{"$f":"MONTH(Tableau1[[#This Row],[Date]])","v":1},null,null,null,null,null,null,null,{"$f":"MONTH(Tableau2[[#This Row],[Date]])","v":1}]
[35,{"$f":"MONTH(Tableau1[[#This Row],[Date]])","v":1},null,null,null,null,null,null,null,{"$f":"MONTH(Tableau2[[#This Row],[Date]])","v":1}]
[36,{"$f":"MONTH(Tableau1[[#This Row],[Date]])","v":1},null,null,null,null,null,null,null,{"$f":"MONTH(Tableau2[[#This Row],[Date]])","v":1}]
[37,{"$f":"MONTH(Tableau1[[#This Row],[Date]])","v":1},null,null,null,null,null,null,null,{"$f":"MONTH(Tableau2[[#This Row],[Date]])","v":1}]
[38,{"$f":"MONTH(Tableau1[[#This Row],[Date]])","v":1},null,null,null,null,null,null,null,{"$f":"MONTH(Tableau2[[#This Row],[Date]])","v":1}]
[39,{"$f":"MONTH(Tableau1[[#This Row],[Date]])","v":1},null,null,null,null,null,null,null,{"$f":"MONTH(Tableau2[[#This Row],[Date]])","v":1}]
[40,{"$f":"MONTH(Tableau1[[#This Row],[Date]])","v":1},null,null,null,null,null,null,null,{"$f":"MONTH(Tableau2[[#This Row],[Date]])","v":1}]
[41,{"$f":"MONTH(Tableau1[[#This Row],[Date]])","v":1},null,null,null,null,null,null,null,{"$f":"MONTH(Tableau2[[#This Row],[Date]])","v":1}]
[42,{"$f":"MONTH(Tableau1[[#This Row],[Date]])","v":1},null,null,null,null,null,null,null,{"$f":"MONTH(Tableau2[[#This Row],[Date]])","v":1}]
[43,{"$f":"MONTH(Tableau1[[#This Row],[Date]])","v":1},null,null,null,null,null,null,null,{"$f":"MONTH(Tableau2[[#This Row],[Date]])","v":1}]
[44,{"$f":"MONTH(Tableau1[[#This Row],[Date]])","v":1},null,null,null,null,null,null,null,{"$f":"MONTH(Tableau2[[#This Row],[Date]])","v":1}]
[45,{"$f":"MONTH(Tableau1[[#This Row],[Date]])","v":1},null,null,null,null,null,null,null,{"$f":"MONTH(Tableau2[[#This Row],[Date]])","v":1}]
[46,{"$f":"MONTH(Tableau1[[#This Row],[Date]])","v":1},null,null,null,null,null,null,null,{"$f":"MONTH(Tableau2[[#This Row],[Date]])","v":1}]
[47,{"$f":"MONTH(Tableau1[[#This Row],[Date]])","v":1},null,null,null,null,null,null,null,{"$f":"MONTH(Tableau2[[#This Row],[Date]])","v":1}]
[48,{"$f":"MONTH(Tableau1[[#This Row],[Date]])","v":1},null,null,null,null,null,null,null,{"$f":"MONTH(Tableau2[[#This Row],[Date]])","v":1}]
[49,{"$f":"MONTH(Tableau1[[#This Row],[Date]])","v":1},null,null,null,null,null,null,null,{"$f":"MONTH(Tableau2[[#This Row],[Date]])","v":1}]
[50,{"$f":"MONTH(Tableau1[[#This Row],[Date]])","v":1},null,null,null,null,null,null,null,{"$f":"MONTH(Tableau2[[#This Row],[Date]])","v":1}]
[51,{"$f":"MONTH(Tableau1[[#This Row],[Date]])","v":1},null,null,null,null,null,null,null,{"$f":"MONTH(Tableau2[[#This Row],[Date]])","v":1}]
[52,{"$f":"MONTH(Tableau1[[#This Row],[Date]])","v":1},null,null,null,null,null,null,null,{"$f":"MONTH(Tableau2[[#This Row],[Date]])","v":1}]
[53,{"$f":"MONTH(Tableau1[[#This Row],[Date]])","v":1},null,null,null,null,null,null,null,{"$f":"MONTH(Tableau2[[#This Row],[Date]])","v":1}]
[54,{"$f":"MONTH(Tableau1[[#This Row],[Date]])","v":1},null,null,null,null,null,null,null,{"$f":"MONTH(Tableau2[[#This Row],[Date]])","v":1}]
[55,{"$f":"MONTH(Tableau1[[#This Row],[Date]])","v":1},null,null,null,null,null,null,null,{"$f":"MONTH(Tableau2[[#This Row],[Date]])","v":1}]
[56,{"$f":"MONTH(Tableau1[[#This Row],[Date]])","v":1},null,null,null,null,null,null,null,{"$f":"MONTH(Tableau2[[#This Row],[Date]])","v":1}]
[57,{"$f":"MONTH(Tableau1[[#This Row],[Date]])","v":1},null,null,null,null,null,null,null,{"$f":"MONTH(Tableau2[[#This Row],[Date]])","v":1}]
[58,{"$f":"MONTH(Tableau1[[#This Row],[Date]])","v":1},null,null,null,null,null,null,null,{"$f":"MONTH(Tableau2[[#This Row],[Date]])","v":1}]
[59,{"$f":"MONTH(Tableau1[[#This Row],[Date]])","v":1},null,null,null,null,null,null,null,{"$f":"MONTH(Tableau2[[#This Row],[Date]])","v":1}]
[60,{"$f":"MONTH(Tableau1[[#This Row],[Date]])","v":1},null,null,null,null,null,null,null,{"$f":"MONTH(Tableau2[[#This Row],[Date]])","v":1}]
[61,{"$f":"MONTH(Tableau1[[#This Row],[Date]])","v":1},null,null,null,null,null,null,null,{"$f":"MONTH(Tableau2[[#This Row],[Date]])","v":1}]
[62,{"$f":"MONTH(Tableau1[[#This Row],[Date]])","v":1},null,null,null,null,null,null,null,{"$f":"MONTH(Tableau2[[#This Row],[Date]])","v":1}]
[63,{"$f":"MONTH(Tableau1[[#This Row],[Date]])","v":1},null,null,null,null,null,null,null,{"$f":"MONTH(Tableau2[[#This Row],[Date]])","v":1}]
[64,{"$f":"MONTH(Tableau1[[#This Row],[Date]])","v":1},null,null,null,null,null,null,null,{"$f":"MONTH(Tableau2[[#This Row],[Date]])","v":1}]
[65,{"$f":"MONTH(Tableau1[[#This Row],[Date]])","v":1},null,null,null,null,null,null,null,{"$f":"MONTH(Tableau2[[#This Row],[Date]])","v":1}]
[66,{"$f":"MONTH(Tableau1[[#This Row],[Date]])","v":1},null,null,null,null,null,null,null,{"$f":"MONTH(Tableau2[[#This Row],[Date]])","v":1}]
[67,{"$f":"MONTH(Tableau1[[#This Row],[Date]])","v":1},null,null,null,null,null,null,null,{"$f":"MONTH(Tableau2[[#This Row],[Date]])","v":1}]
[68,{"$f":"MONTH(Tableau1[[#This Row],[Date]])","v":1},null,null,null,null,null,null,null,{"$f":"MONTH(Tableau2[[#This Row],[Date]])","v":1}]
[69,{"$f":"MONTH(Tableau1[[#This Row],[Date]])","v":1},null,null,null,null,null,null,null,{"$f":"MONTH(Tableau2[[#This Row],[Date]])","v":1}]
[70,{"$f":"MONTH(Tableau1[[#This Row],[Date]])","v":1},null,null,null,null,null,null,null,{"$f":"MONTH(Tableau2[[#This Row],[Date]])","v":1}]
[71,{"$f":"MONTH(Tableau1[[#This Row],[Date]])","v":1},null,null,null,null,null,null,null,{"$f":"MONTH(Tableau2[[#This Row],[Date]])","v":1}]
[72,{"$f":"MONTH(Tableau1[[#This Row],[Date]])","v":1},null,null,null,null,null,null,null,{"$f":"MONTH(Tableau2[[#This Row],[Date]])","v":1}]
[73,{"$f":"MONTH(Tableau1[[#This Row],[Date]])","v":1},null,null,null,null,null,null,null,{"$f":"MONTH(Tableau2[[#This Row],[Date]])","v":1}]
[74,{"$f":"MONTH(Tableau1[[#This Row],[Date]])","v":1},null,null,null,null,null,null,null,{"$f":"MONTH(Tableau2[[#This Row],[Date]])","v":1}]
[75,{"$f":"MONTH(Tableau1[[#This Row],[Date]])","v":1},null,null,null,null,null,null,null,{"$f":"MONTH(Tableau2[[#This Row],[Date]])","v":1}]
[76,{"$f":"MONTH(Tableau1[[#This Row],[Date]])","v":1},null,null,null,null,null,null,null,{"$f":"MONTH(Tableau2[[#This Row],[Date]])","v":1}]
[77,{"$f":"MONTH(Tableau1[[#This Row],[Date]])","v":1},null,null,null,null,null,null,null,{"$f":"MONTH(Tableau2[[#This Row],[Date]])","v":1}]
[78,{"$f":"MONTH(Tableau1[[#This Row],[Date]])","v":1},null,null,null,null,null,null,null,{"$f":"MONTH(Tableau2[[#This Row],[Date]])","v":1}]
[79,{"$f":"MONTH(Tableau1[[#This Row],[Date]])","v":1},null,null,null,null,null,null,null,{"$f":"MONTH(Tableau2[[#This Row],[Date]])","v":1}]
[80,{"$f":"MONTH(Tableau1[[#This Row],[Date]])","v":1},null,null,null,null,null,null,null,{"$f":"MONTH(Tableau2[[#This Row],[Date]])","v":1}]
[81,{"$f":"MONTH(Tableau1[[#This Row],[Date]])","v":1},null,null,null,null,null,null,null,{"$f":"MONTH(Tableau2[[#This Row],[Date]])","v":1}]
[82,{"$f":"MONTH(Tableau1[[#This Row],[Date]])","v":1},null,null,null,null,null,null,null,{"$f":"MONTH(Tableau2[[#This Row],[Date]])","v":1}]
[83,{"$f":"MONTH(Tableau1[[#This Row],[Date]])","v":1},null,null,null,null,null,null,null,{"$f":"MONTH(Tableau2[[#This Row],[Date]])","v":1}]
[84,{"$f":"MONTH(Tableau1[[#This Row],[Date]])","v":1},null,null,null,null,null,null,null,{"$f":"MONTH(Tableau2[[#This Row],[Date]])","v":1}]
[85,{"$f":"MONTH(Tableau1[[#This Row],[Date]])","v":1},null,null,null,null,null,null,null,{"$f":"MONTH(Tableau2[[#This Row],[Date]])","v":1}]
[86,{"$f":"MONTH(Tableau1[[#This Row],[Date]])","v":1},null,null,null,null,null,null,null,{"$f":"MONTH(Tableau2[[#This Row],[Date]])","v":1}]
[87,{"$f":"MONTH(Tableau1[[#This Row],[Date]])","v":1},null,null,null,null,null,null,null,{"$f":"MONTH(Tableau2[[#This Row],[Date]])","v":1}]
[88,{"$f":"MONTH(Tableau1[[#This Row],[Date]])","v":1},null,null,null,null,null,null,null,{"$f":"MONTH(Tableau2[[#This Row],[Date]])","v":1}]
[89,{"$f":"MONTH(Tableau1[[#This Row],[Date]])","v":1},null,null,null,null,null,null,null,{"$f":"MONTH(Tableau2[[#This Row],[Date]])","v":1}]
[90,{"$f":"MONTH(Tableau1[[#This Row],[Date]])","v":1},null,null,null,null,null,null,null,{"$f":"MONTH(Tableau2[[#This Row],[Date]])","v":1}]
[91,{"$f":"MONTH(Tableau1[[#This Row],[Date]])","v":1},null,null,null,null,null,null,null,{"$f":"MONTH(Tableau2[[#This Row],[Date]])","v":1}]
[92,{"$f":"MONTH(Tableau1[[#This Row],[Date]])","v":1},null,null,null,null,null,null,null,{"$f":"MONTH(Tableau2[[#This Row],[Date]])","v":1}]
[93,{"$f":"MONTH(Tableau1[[#This Row],[Date]])","v":1},null,null,null,null,null,null,null,{"$f":"MONTH(Tableau2[[#This Row],[Date]])","v":1}]
[94,{"$f":"MONTH(Tableau1[[#This Row],[Date]])","v":1},null,null,null,null,null,null,null,{"$f":"MONTH(Tableau2[[#This Row],[Date]])","v":1}]
[95,{"$f":"MONTH(Tableau1[[#This Row],[Date]])","v":1},null,null,null,null,null,null,null,{"$f":"MONTH(Tableau2[[#This Row],[Date]])","v":1}]
[96,{"$f":"MONTH(Tableau1[[#This Row],[Date]])","v":1},null,null,null,null,null,null,null,{"$f":"MONTH(Tableau2[[#This Row],[Date]])","v":1}]
[97,{"$f":"MONTH(Tableau1[[#This Row],[Date]])","v":1},null,null,null,null,null,null,null,{"$f":"MONTH(Tableau2[[#This Row],[Date]])","v":1}]
[98,{"$f":"MONTH(Tableau1[[#This Row],[Date]])","v":1},null,null,null,null,null,null,null,{"$f":"MONTH(Tableau2[[#This Row],[Date]])","v":1}]
[99,{"$f":"MONTH(Tableau1[[#This Row],[Date]])","v":1},null,null,null,null,null,null,null,{"$f":"MONTH(Tableau2[[#This Row],[Date]])","v":1}]
[100,{"$f":"MONTH(Tableau1[[#This Row],[Date]])","v":1},null,null,null,null,null,null,null,{"$f":"MONTH(Tableau2[[#This Row],[Date]])","v":1}]
[101,{"$f":"MONTH(Tableau1[[#This Row],[Date]])","v":1},null,null,null,null,null,null,null,{"$f":"MONTH(Tableau2[[#This Row],[Date]])","v":1}]
[102,{"$f":"MONTH(Tableau1[[#This Row],[Date]])","v":1},null,null,null,null,null,null,null,{"$f":"MONTH(Tableau2[[#This Row],[Date]])","v":1}]
[103,{"$f":"MONTH(Tableau1[[#This Row],[Date]])","v":1},null,null,null,null,null,null,null,{"$f":"MONTH(Tableau2[[#This Row],[Date]])","v":1}]
[104,{"$f":"MONTH(Tableau1[[#This Row],[Date]])","v":1},null,null,null,null,null,null,null,{"$f":"MONTH(Tableau2[[#This Row],[Date]])","v":1}]
[105,{"$f":"MONTH(Tableau1[[#This Row],[Date]])","v":1},null,null,null,null,null,null,null,{"$f":"MONTH(Tableau2[[#This Row],[Date]])","v":1}]
[106,{"$f":"MONTH(Tableau1[[#This Row],[Date]])","v":1},null,null,null,null,null,null,null,{"$f":"MONTH(Tableau2[[#This Row],[Date]])","v":1}]
[107,{"$f":"MONTH(Tableau1[[#This Row],[Date]])","v":1},null,null,null,null,null,null,null,{"$f":"MONTH(Tableau2[[#This Row],[Date]])","v":1}]
[108,{"$f":"MONTH(Tableau1[[#This Row],[Date]])","v":1},null,null,null,null,null,null,null,{"$f":"MONTH(Tableau2[[#This Row],[Date]])","v":1}]
[109,{"$f":"MONTH(Tableau1[[#This Row],[Date]])","v":1},null,null,null,null,null,null,null,{"$f":"MONTH(Tableau2[[#This Row],[Date]])","v":1}]
[110,{"$f":"MONTH(Tableau1[[#This Row],[Date]])","v":1},null,null,null,null,null,null,null,{"$f":"MONTH(Tableau2[[#This Row],[Date]])","v":1}]
[111,{"$f":"MONTH(Tableau1[[#This Row],[Date]])","v":1},null,null,null,null,null,null,null,{"$f":"MONTH(Tableau2[[#This Row],[Date]])","v":1}]
[112,{"$f":"MONTH(Tableau1[[#This Row],[Date]])","v":1},null,null,null,null,null,null,null,{"$f":"MONTH(Tableau2[[#This Row],[Date]])","v":1}]
[113,{"$f":"MONTH(Tableau1[[#This Row],[Date]])","v":1},null,null,null,null,null,null,null,{"$f":"MONTH(Tableau2[[#This Row],[Date]])","v":1}]
[114,{"$f":"MONTH(Tableau1[[#This Row],[Date]])","v":1},null,null,null,null,null,null,null,{"$f":"MONTH(Tableau2[[#This Row],[Date]])","v":1}]
[115,{"$f":"MONTH(Tableau1[[#This Row],[Date]])","v":1},null,null,null,null,null,null,null,{"$f":"MONTH(Tableau2[[#This Row],[Date]])","v":1}]
[116,{"$f":"MONTH(Tableau1[[#This Row],[Date]])","v":1},null,null,null,null,null,null,null,{"$f":"MONTH(Tableau2[[#This Row],[Date]])","v":1}]
[117,{"$f":"MONTH(Tableau1[[#This Row],[Date]])","v":1},null,null,null,null,null,null,null,{"$f":"MONTH(Tableau2[[#This Row],[Date]])","v":1}]
[118,{"$f":"MONTH(Tableau1[[#This Row],[Date]])","v":1},null,null,null,null,null,null,null,{"$f":"MONTH(Tableau2[[#This Row],[Date]])","v":1}]
[119,{"$f":"MONTH(Tableau1[[#This Row],[Date]])","v":1},null,null,null,null,null,null,null,{"$f":"MONTH(Tableau2[[#This Row],[Date]])","v":1}]
[120,{"$f":"MONTH(Tableau1[[#This Row],[Date]])","v":1},null,null,null,null,null,null,null,{"$f":"MONTH(Tableau2[[#This Row],[Date]])","v":1}]
[121,{"$f":"MONTH(Tableau1[[#This Row],[Date]])","v":1},null,null,null,null,null,null,null,{"$f":"MONTH(Tableau2[[#This Row],[Date]])","v":1}]
[122,{"$f":"MONTH(Tableau1[[#This Row],[Date]])","v":1},null,null,null,null,null,null,null,{"$f":"MONTH(Tableau2[[#This Row],[Date]])","v":1}]
[123,{"$f":"MONTH(Tableau1[[#This Row],[Date]])","v":1},null,null,null,null,null,null,null,{"$f":"MONTH(Tableau2[[#This Row],[Date]])","v":1}]
[124,{"$f":"MONTH(Tableau1[[#This Row],[Date]])","v":1},null,null,null,null,null,null,null,{"$f":"MONTH(Tableau2[[#This Row],[Date]])","v":1}]
[125,{"$f":"MONTH(Tableau1[[#This Row],[Date]])","v":1},null,null,null,null,null,null,null,{"$f":"MONTH(Tableau2[[#This Row],[Date]])","v":1}]
[126,{"$f":"MONTH(Tableau1[[#This Row],[Date]])","v":1},null,null,null,null,null,null,null,{"$f":"MONTH(Tableau2[[#This Row],[Date]])","v":1}]
[127,{"$f":"MONTH(Tableau1[[#This Row],[Date]])","v":1},null,null,null,null,null,null,null,{"$f":"MONTH(Tableau2[[#This Row],[Date]])","v":1}]
[128,{"$f":"MONTH(Tableau1[[#This Row],[Date]])","v":1},null,null,null,null,null,null,null,{"$f":"MONTH(Tableau2[[#This Row],[Date]])","v":1}]
[129,{"$f":"MONTH(Tableau1[[#This Row],[Date]])","v":1},null,null,null,null,null,null,null,{"$f":"MONTH(Tableau2[[#This Row],[Date]])","v":1}]
[130,{"$f":"MONTH(Tableau1[[#This Row],[Date]])","v":1},null,null,null,null,null,null,null,{"$f":"MONTH(Tableau2[[#This Row],[Date]])","v":1}]
[131,{"$f":"MONTH(Tableau1[[#This Row],[Date]])","v":1},null,null,null,null,null,null,null,{"$f":"MONTH(Tableau2[[#This Row],[Date]])","v":1}]
[132,{"$f":"MONTH(Tableau1[[#This Row],[Date]])","v":1},null,null,null,null,null,null,null,{"$f":"MONTH(Tableau2[[#This Row],[Date]])","v":1}]
[133,{"$f":"MONTH(Tableau1[[#This Row],[Date]])","v":1},null,null,null,null,null,null,null,{"$f":"MONTH(Tableau2[[#This Row],[Date]])","v":1}]
[134,{"$f":"MONTH(Tableau1[[#This Row],[Date]])","v":1},null,null,null,null,null,null,null,{"$f":"MONTH(Tableau2[[#This Row],[Date]])","v":1}]
[135,{"$f":"MONTH(Tableau1[[#This Row],[Date]])","v":1},null,null,null,null,null,null,null,{"$f":"MONTH(Tableau2[[#This Row],[Date]])","v":1}]
[136,{"$f":"MONTH(Tableau1[[#This Row],[Date]])","v":1},null,null,null,null,null,null,null,{"$f":"MONTH(Tableau2[[#This Row],[Date]])","v":1}]
[137,{"$f":"MONTH(Tableau1[[#This Row],[Date]])","v":1},null,null,null,null,null,null,null,{"$f":"MONTH(Tableau2[[#This Row],[Date]])","v":1}]
[138,{"$f":"MONTH(Tableau1[[#This Row],[Date]])","v":1},null,null,null,null,null,null,null,{"$f":"MONTH(Tableau2[[#This Row],[Date]])","v":1}]
[139,{"$f":"MONTH(Tableau1[[#This Row],[Date]])","v":1},null,null,null,null,null,null,null,{"$f":"MONTH(Tableau2[[#This Row],[Date]])","v":1}]
[140,{"$f":"MONTH(Tableau1[[#This Row],[Date]])","v":1},null,null,null,null,null,null,null,{"$f":"MONTH(Tableau2[[#This Row],[Date]])","v":1}]
[141,{"$f":"MONTH(Tableau1[[#This Row],[Date]])","v":1},null,null,null,null,null,null,null,{"$f":"MONTH(Tableau2[[#This Row],[Date]])","v":1}]
[142,{"$f":"MONTH(Tableau1[[#This Row],[Date]])","v":1},null,null,null,null,null,null,null,{"$f":"MONTH(Tableau2[[#This Row],[Date]])","v":1}]
[143,{"$f":"MONTH(Tableau1[[#This Row],[Date]])","v":1},null,null,null,null,null,null,null,{"$f":"MONTH(Tableau2[[#This Row],[Date]])","v":1}]
[144,{"$f":"MONTH(Tableau1[[#This Row],[Date]])","v":1},null,null,null,null,null,null,null,{"$f":"MONTH(Tableau2[[#This Row],[Date]])","v":1}]
[145,{"$f":"MONTH(Tableau1[[#This Row],[Date]])","v":1},null,null,null,null,null,null,null,{"$f":"MONTH(Tableau2[[#This Row],[Date]])","v":1}]
[146,{"$f":"MONTH(Tableau1[[#This Row],[Date]])","v":1},null,null,null,null,null,null,null,{"$f":"MONTH(Tableau2[[#This Row],[Date]])","v":1}]
[147,{"$f":"MONTH(Tableau1[[#This Row],[Date]])","v":1},null,null,null,null,null,null,null,{"$f":"MONTH(Tableau2[[#This Row],[Date]])","v":1}]
[148,{"$f":"MONTH(Tableau1[[#This Row],[Date]])","v":1},null,null,null,null,null,null,null,{"$f":"MONTH(Tableau2[[#This Row],[Date]])","v":1}]
[149,{"$f":"MONTH(Tableau1[[#This Row],[Date]])","v":1},null,null,null,null,null,null,null,{"$f":"MONTH(Tableau2[[#This Row],[Date]])","v":1}]
[150,{"$f":"MONTH(Tableau1[[#This Row],[Date]])","v":1},null,null,null,null,null,null,null,{"$f":"MONTH(Tableau2[[#This Row],[Date]])","v":1}]
[151,{"$f":"MONTH(Tableau1[[#This Row],[Date]])","v":1},null,null,null,null,null,null,null,{"$f":"MONTH(Tableau2[[#This Row],[Date]])","v":1}]
[152,{"$f":"MONTH(Tableau1[[#This Row],[Date]])","v":1},null,null,null,null,null,null,null,{"$f":"MONTH(Tableau2[[#This Row],[Date]])","v":1}]
[153,{"$f":"MONTH(Tableau1[[#This Row],[Date]])","v":1},null,null,null,null,null,null,null,{"$f":"MONTH(Tableau2[[#This Row],[Date]])","v":1}]
[154,{"$f":"MONTH(Tableau1[[#This Row],[Date]])","v":1},null,null,null,null,null,null,null,{"$f":"MONTH(Tableau2[[#This Row],[Date]])","v":1}]
[155,{"$f":"MONTH(Tableau1[[#This Row],[Date]])","v":1},null,null,null,null,null,null,null,{"$f":"MONTH(Tableau2[[#This Row],[Date]])","v":1}]
[156,{"$f":"MONTH(Tableau1[[#This Row],[Date]])","v":1},null,null,null,null,null,null,null,{"$f":"MONTH(Tableau2[[#This Row],[Date]])","v":1}]
[157,{"$f":"MONTH(Tableau1[[#This Row],[Date]])","v":1},null,null,null,null,null,null,null,{"$f":"MONTH(Tableau2[[#This Row],[Date]])","v":1}]
[158,{"$f":"MONTH(Tableau1[[#This Row],[Date]])","v":1},null,null,null,null,null,null,null,{"$f":"MONTH(Tableau2[[#This Row],[Date]])","v":1}]
[159,{"$f":"MONTH(Tableau1[[#This Row],[Date]])","v":1},null,null,null,null,null,null,null,{"$f":"MONTH(Tableau2[[#This Row],[Date]])","v":1}]
[160,{"$f":"MONTH(Tableau1[[#This Row],[Date]])","v":1},null,null,null,null,null,null,null,{"$f":"MONTH(Tableau2[[#This Row],[Date]])","v":1}]
[161,{"$f":"MONTH(Tableau1[[#This Row],[Date]])","v":1},null,null,null,null,null,null,null,{"$f":"MONTH(Tableau2[[#This Row],[Date]])","v":1}]
[162,{"$f":"MONTH(Tableau1[[#This Row],[Date]])","v":1},null,null,null,null,null,null,null,{"$f":"MONTH(Tableau2[[#This Row],[Date]])","v":1}]
[163,{"$f":"MONTH(Tableau1[[#This Row],[Date]])","v":1},null,null,null,null,null,null,null,{"$f":"MONTH(Tableau2[[#This Row],[Date]])","v":1}]
[164,{"$f":"MONTH(Tableau1[[#This Row],[Date]])","v":1},null,null,null,null,null,null,null,{"$f":"MONTH(Tableau2[[#This Row],[Date]])","v":1}]
[165,{"$f":"MONTH(Tableau1[[#This Row],[Date]])","v":1},null,null,null,null,null,null,null,{"$f":"MONTH(Tableau2[[#This Row],[Date]])","v":1}]
[166,{"$f":"MONTH(Tableau1[[#This Row],[Date]])","v":1},null,null,null,null,null,null,null,{"$f":"MONTH(Tableau2[[#This Row],[Date]])","v":1}]
[167,{"$f":"MONTH(Tableau1[[#This Row],[Date]])","v":1},null,null,null,null,null,null,null,{"$f":"MONTH(Tableau2[[#This Row],[Date]])","v":1}]
[168,{"$f":"MONTH(Tableau1[[#This Row],[Date]])","v":1},null,null,null,null,null,null,null,{"$f":"MONTH(Tableau2[[#This Row],[Date]])","v":1}]
[169,{"$f":"MONTH(Tableau1[[#This Row],[Date]])","v":1},null,null,null,null,null,null,null,{"$f":"MONTH(Tableau2[[#This Row],[Date]])","v":1}]
[170,{"$f":"MONTH(Tableau1[[#This Row],[Date]])","v":1},null,null,null,null,null,null,null,{"$f":"MONTH(Tableau2[[#This Row],[Date]])","v":1}]
[171,{"$f":"MONTH(Tableau1[[#This Row],[Date]])","v":1},null,null,null,null,null,null,null,{"$f":"MONTH(Tableau2[[#This Row],[Date]])","v":1}]
[172,{"$f":"MONTH(Tableau1[[#This Row],[Date]])","v":1},null,null,null,null,null,null,null,{"$f":"MONTH(Tableau2[[#This Row],[Date]])","v":1}]
[173,{"$f":"MONTH(Tableau1[[#This Row],[Date]])","v":1},null,null,null,null,null,null,null,{"$f":"MONTH(Tableau2[[#This Row],[Date]])","v":1}]
[174,{"$f":"MONTH(Tableau1[[#This Row],[Date]])","v":1},null,null,null,null,null,null,null,{"$f":"MONTH(Tableau2[[#This Row],[Date]])","v":1}]
[175,{"$f":"MONTH(Tableau1[[#This Row],[Date]])","v":1},null,null,null,null,null,null,null,{"$f":"MONTH(Tableau2[[#This Row],[Date]])","v":1}]
[176,{"$f":"MONTH(Tableau1[[#This Row],[Date]])","v":1},null,null,null,null,null,null,null,{"$f":"MONTH(Tableau2[[#This Row],[Date]])","v":1}]
[177,{"$f":"MONTH(Tableau1[[#This Row],[Date]])","v":1},null,null,null,null,null,null,null,{"$f":"MONTH(Tableau2[[#This Row],[Date]])","v":1}]
[178,{"$f":"MONTH(Tableau1[[#This Row],[Date]])","v":1},null,null,null,null,null,null,null,{"$f":"MONTH(Tableau2[[#This Row],[Date]])","v":1}]
[179,{"$f":"MONTH(Tableau1[[#This Row],[Date]])","v":1},null,null,null,null,null,null,null,{"$f":"MONTH(Tableau2[[#This Row],[Date]])","v":1}]
[180,{"$f":"MONTH(Tableau1[[#This Row],[Date]])","v":1},null,null,null,null,null,null,null,{"$f":"MONTH(Tableau2[[#This Row],[Date]])","v":1}]
[181,{"$f":"MONTH(Tableau1[[#This Row],[Date]])","v":1},null,null,null,null,null,null,null,{"$f":"MONTH(Tableau2[[#This Row],[Date]])","v":1}]
[182,{"$f":"MONTH(Tableau1[[#This Row],[Date]])","v":1},null,null,null,null,null,null,null,{"$f":"MONTH(Tableau2[[#This Row],[Date]])","v":1}]
[183,{"$f":"MONTH(Tableau1[[#This Row],[Date]])","v":1},null,null,null,null,null,null,null,{"$f":"MONTH(Tableau2[[#This Row],[Date]])","v":1}]
[184,{"$f":"MONTH(Tableau1[[#This Row],[Date]])","v":1},null,null,null,null,null,null,null,{"$f":"MONTH(Tableau2[[#This Row],[Date]])","v":1}]
[185,{"$f":"MONTH(Tableau1[[#This Row],[Date]])","v":1},null,null,null,null,null,null,null,{"$f":"MONTH(Tableau2[[#This Row],[Date]])","v":1}]
[186,{"$f":"MONTH(Tableau1[[#This Row],[Date]])","v":1},null,null,null,null,null,null,null,{"$f":"MONTH(Tableau2[[#This Row],[Date]])","v":1}]
[187,{"$f":"MONTH(Tableau1[[#This Row],[Date]])","v":1},null,null,null,null,null,null,null,{"$f":"MONTH(Tableau2[[#This Row],[Date]])","v":1}]
[188,{"$f":"MONTH(Tableau1[[#This Row],[Date]])","v":1},null,null,null,null,null,null,null,{"$f":"MONTH(Tableau2[[#This Row],[Date]])","v":1}]
[189,{"$f":"MONTH(Tableau1[[#This Row],[Date]])","v":1},null,null,null,null,null,null,null,{"$f":"MONTH(Tableau2[[#This Row],[Date]])","v":1}]
[190,{"$f":"MONTH(Tableau1[[#This Row],[Date]])","v":1},null,null,null,null,null,null,null,{"$f":"MONTH(Tableau2[[#This Row],[Date]])","v":1}]
[191,{"$f":"MONTH(Tableau1[[#This Row],[Date]])","v":1},null,null,null,null,null,null,null,{"$f":"MONTH(Tableau2[[#This Row],[Date]])","v":1}]
[192,{"$f":"MONTH(Tableau1[[#This Row],[Date]])","v":1},null,null,null,null,null,null,null,{"$f":"MONTH(Tableau2[[#This Row],[Date]])","v":1}]
[193,{"$f":"MONTH(Tableau1[[#This Row],[Date]])","v":1},null,null,null,null,null,null,null,{"$f":"MONTH(Tableau2[[#This Row],[Date]])","v":1}]
[194,{"$f":"MONTH(Tableau1[[#This Row],[Date]])","v":1},null,null,null,null,null,null,null,{"$f":"MONTH(Tableau2[[#This Row],[Date]])","v":1}]
[195,{"$f":"MONTH(Tableau1[[#This Row],[Date]])","v":1},null,null,null,null,null,null,null,{"$f":"MONTH(Tableau2[[#This Row],[Date]])","v":1}]
[196,{"$f":"MONTH(Tableau1[[#This Row],[Date]])","v":1},null,null,null,null,null,null,null,{"$f":"MONTH(Tableau2[[#This Row],[Date]])","v":1}]
[197,{"$f":"MONTH(Tableau1[[#This Row],[Date]])","v":1},null,null,null,null,null,null,null,{"$f":"MONTH(Tableau2[[#This Row],[Date]])","v":1}]
[198,{"$f":"MONTH(Tableau1[[#This Row],[Date]])","v":1},null,null,null,null,null,null,null,{"$f":"MONTH(Tableau2[[#This Row],[Date]])","v":1}]
[199,{"$f":"MONTH(Tableau1[[#This Row],[Date]])","v":1},null,null,null,null,null,null,null,{"$f":"MONTH(Tableau2[[#This Row],[Date]])","v":1}]
[200,{"$f":"MONTH(Tableau1[[#This Row],[Date]])","v":1},null,null,null,null,null,null,null,{"$f":"MONTH(Tableau2[[#This Row],[Date]])","v":1}]
[201,{"$f":"MONTH(Tableau1[[#This Row],[Date]])","v":1},null,null,null,null,null,null,null,{"$f":"MONTH(Tableau2[[#This Row],[Date]])","v":1}]
[202,{"$f":"MONTH(Tableau1[[#This Row],[Date]])","v":1},null,null,null,null,null,null,null,{"$f":"MONTH(Tableau2[[#This Row],[Date]])","v":1}]
[203,{"$f":"MONTH(Tableau1[[#This Row],[Date]])","v":1},null,null,null,null,null,null,null,{"$f":"MONTH(Tableau2[[#This Row],[Date]])","v":1}]
[204,{"$f":"MONTH(Tableau1[[#This Row],[Date]])","v":1},null,null,null,null,null,null,null,{"$f":"MONTH(Tableau2[[#This Row],[Date]])","v":1}]
[205,{"$f":"MONTH(Tableau1[[#This Row],[Date]])","v":1},null,null,null,null,null,null,null,{"$f":"MONTH(Tableau2[[#This Row],[Date]])","v":1}]
[206,{"$f":"MONTH(Tableau1[[#This Row],[Date]])","v":1},null,null,null,null,null,null,null,{"$f":"MONTH(Tableau2[[#This Row],[Date]])","v":1}]
[207,{"$f":"MONTH(Tableau1[[#This Row],[Date]])","v":1},null,null,null,null,null,null,null,{"$f":"MONTH(Tableau2[[#This Row],[Date]])","v":1}]
[208,{"$f":"MONTH(Tableau1[[#This Row],[Date]])","v":1},null,null,null,null,null,null,null,{"$f":"MONTH(Tableau2[[#This Row],[Date]])","v":1}]
[209,{"$f":"MONTH(Tableau1[[#This Row],[Date]])","v":1},null,null,null,null,null,null,null,{"$f":"MONTH(Tableau2[[#This Row],[Date]])","v":1}]
[210,{"$f":"MONTH(Tableau1[[#This Row],[Date]])","v":1},null,null,null,null,null,null,null,{"$f":"MONTH(Tableau2[[#This Row],[Date]])","v":1}]
[211,{"$f":"MONTH(Tableau1[[#This Row],[Date]])","v":1},null,null,null,null,null,null,null,{"$f":"MONTH(Tableau2[[#This Row],[Date]])","v":1}]
[212,{"$f":"MONTH(Tableau1[[#This Row],[Date]])","v":1},null,null,null,null,null,null,null,{"$f":"MONTH(Tableau2[[#This Row],[Date]])","v":1}]
[213,{"$f":"MONTH(Tableau1[[#This Row],[Date]])","v":1},null,null,null,null,null,null,null,{"$f":"MONTH(Tableau2[[#This Row],[Date]])","v":1}]
[214,{"$f":"MONTH(Tableau1[[#This Row],[Date]])","v":1},null,null,null,null,null,null,null,{"$f":"MONTH(Tableau2[[#This Row],[Date]])","v":1}]
[215,{"$f":"MONTH(Tableau1[[#This Row],[Date]])","v":1},null,null,null,null,null,null,null,{"$f":"MONTH(Tableau2[[#This Row],[Date]])","v":1}]
[216,{"$f":"MONTH(Tableau1[[#This Row],[Date]])","v":1},null,null,null,null,null,null,null,{"$f":"MONTH(Tableau2[[#This Row],[Date]])","v":1}]
[217,{"$f":"MONTH(Tableau1[[#This Row],[Date]])","v":1},null,null,null,null,null,null,null,{"$f":"MONTH(Tableau2[[#This Row],[Date]])","v":1}]
[218,{"$f":"MONTH(Tableau1[[#This Row],[Date]])","v":1},null,null,null,null,null,null,null,{"$f":"MONTH(Tableau2[[#This Row],[Date]])","v":1}]
[219,{"$f":"MONTH(Tableau1[[#This Row],[Date]])","v":1},null,null,null,null,null,null,null,{"$f":"MONTH(Tableau2[[#This Row],[Date]])","v":1}]
[220,{"$f":"MONTH(Tableau1[[#This Row],[Date]])","v":1},null,null,null,null,null,null,null,{"$f":"MONTH(Tableau2[[#This Row],[Date]])","v":1}]
[221,{"$f":"MONTH(Tableau1[[#This Row],[Date]])","v":1},null,null,null,null,null,null,null,{"$f":"MONTH(Tableau2[[#This Row],[Date]])","v":1}]
[222,{"$f":"MONTH(Tableau1[[#This Row],[Date]])","v":1},null,null,null,null,null,null,null,{"$f":"MONTH(Tableau2[[#This Row],[Date]])","v":1}]
[223,{"$f":"MONTH(Tableau1[[#This Row],[Date]])","v":1},null,null,null,null,null,null,null,{"$f":"MONTH(Tableau2[[#This Row],[Date]])","v":1}]
[224,{"$f":"MONTH(Tableau1[[#This Row],[Date]])","v":1},null,null,null,null,null,null,null,{"$f":"MONTH(Tableau2[[#This Row],[Date]])","v":1}]
[225,{"$f":"MONTH(Tableau1[[#This Row],[Date]])","v":1},null,null,null,null,null,null,null,{"$f":"MONTH(Tableau2[[#This Row],[Date]])","v":1}]
[226,{"$f":"MONTH(Tableau1[[#This Row],[Date]])","v":1},null,null,null,null,null,null,null,{"$f":"MONTH(Tableau2[[#This Row],[Date]])","v":1}]
[227,{"$f":"MONTH(Tableau1[[#This Row],[Date]])","v":1},null,null,null,null,null,null,null,{"$f":"MONTH(Tableau2[[#This Row],[Date]])","v":1}]
[228,{"$f":"MONTH(Tableau1[[#This Row],[Date]])","v":1},null,null,null,null,null,null,null,{"$f":"MONTH(Tableau2[[#This Row],[Date]])","v":1}]
[229,{"$f":"MONTH(Tableau1[[#This Row],[Date]])","v":1},null,null,null,null,null,null,null,{"$f":"MONTH(Tableau2[[#This Row],[Date]])","v":1}]
[230,{"$f":"MONTH(Tableau1[[#This Row],[Date]])","v":1},null,null,null,null,null,null,null,{"$f":"MONTH(Tableau2[[#This Row],[Date]])","v":1}]
[231,{"$f":"MONTH(Tableau1[[#This Row],[Date]])","v":1},null,null,null,null,null,null,null,{"$f":"MONTH(Tableau2[[#This Row],[Date]])","v":1}]
[232,{"$f":"MONTH(Tableau1[[#This Row],[Date]])","v":1},null,null,null,null,null,null,null,{"$f":"MONTH(Tableau2[[#This Row],[Date]])","v":1}]
[233,{"$f":"MONTH(Tableau1[[#This Row],[Date]])","v":1},null,null,null,null,null,null,null,{"$f":"MONTH(Tableau2[[#This Row],[Date]])","v":1}]
[234,{"$f":"MONTH(Tableau1[[#This Row],[Date]])","v":1},null,null,null,null,null,null,null,{"$f":"MONTH(Tableau2[[#This Row],[Date]])","v":1}]
[235,{"$f":"MONTH(Tableau1[[#This Row],[Date]])","v":1},null,null,null,null,null,null,null,{"$f":"MONTH(Tableau2[[#This Row],[Date]])","v":1}]
[236,{"$f":"MONTH(Tableau1[[#This Row],[Date]])","v":1},null,null,null,null,null,null,null,{"$f":"MONTH(Tableau2[[#This Row],[Date]])","v":1}]
[237,{"$f":"MONTH(Tableau1[[#This Row],[Date]])","v":1},null,null,null,null,null,null,null,{"$f":"MONTH(Tableau2[[#This Row],[Date]])","v":1}]
[238,{"$f":"MONTH(Tableau1[[#This Row],[Date]])","v":1},null,null,null,null,null,null,null,{"$f":"MONTH(Tableau2[[#This Row],[Date]])","v":1}]
[239,{"$f":"MONTH(Tableau1[[#This Row],[Date]])","v":1},null,null,null,null,null,null,null,{"$f":"MONTH(Tableau2[[#This Row],[Date]])","v":1}]
[240,{"$f":"MONTH(Tableau1[[#This Row],[Date]])","v":1},null,null,null,null,null,null,null,{"$f":"MONTH(Tableau2[[#This Row],[Date]])","v":1}]
[241,{"$f":"MONTH(Tableau1[[#This Row],[Date]])","v":1},null,null,null,null,null,null,null,{"$f":"MONTH(Tableau2[[#This Row],[Date]])","v":1}]
[242,{"$f":"MONTH(Tableau1[[#This Row],[Date]])","v":1},null,null,null,null,null,null,null,{"$f":"MONTH(Tableau2[[#This Row],[Date]])","v":1}]
[243,{"$f":"MONTH(Tableau1[[#This Row],[Date]])","v":1},null,null,null,null,null,null,null,{"$f":"MONTH(Tableau2[[#This Row],[Date]])","v":1}]
[244,{"$f":"MONTH(Tableau1[[#This Row],[Date]])","v":1},null,null,null,null,null,null,null,{"$f":"MONTH(Tableau2[[#This Row],[Date]])","v":1}]
[245,{"$f":"MONTH(Tableau1[[#This Row],[Date]])","v":1},null,null,null,null,null,null,null,{"$f":"MONTH(Tableau2[[#This Row],[Date]])","v":1}]
[246,{"$f":"MONTH(Tableau1[[#This Row],[Date]])","v":1},null,null,null,null,null,null,null,{"$f":"MONTH(Tableau2[[#This Row],[Date]])","v":1}]
[247,{"$f":"MONTH(Tableau1[[#This Row],[Date]])","v":1},null,null,null,null,null,null,null,{"$f":"MONTH(Tableau2[[#This Row],[Date]])","v":1}]
[248,{"$f":"MONTH(Tableau1[[#This Row],[Date]])","v":1},null,null,null,null,null,null,null,{"$f":"MONTH(Tableau2[[#This Row],[Date]])","v":1}]
[249,{"$f":"MONTH(Tableau1[[#This Row],[Date]])","v":1},null,null,null,null,null,null,null,{"$f":"MONTH(Tableau2[[#This Row],[Date]])","v":1}]
[250,{"$f":"MONTH(Tableau1[[#This Row],[Date]])","v":1},null,null,null,null,null,null,null,{"$f":"MONTH(Tableau2[[#This Row],[Date]])","v":1}]
[251,{"$f":"MONTH(Tableau1[[#This Row],[Date]])","v":1},null,null,null,null,null,null,null,{"$f":"MONTH(Tableau2[[#This Row],[Date]])","v":1}]
[252,{"$f":"MONTH(Tableau1[[#This Row],[Date]])","v":1},null,null,null,null,null,null,null,{"$f":"MONTH(Tableau2[[#This Row],[Date]])","v":1}]
[253,{"$f":"MONTH(Tableau1[[#This Row],[Date]])","v":1},null,null,null,null,null,null,null,{"$f":"MONTH(Tableau2[[#This Row],[Date]])","v":1}]
[254,{"$f":"MONTH(Tableau1[[#This Row],[Date]])","v":1},null,null,null,null,null,null,null,{"$f":"MONTH(Tableau2[[#This Row],[Date]])","v":1}]
[255,{"$f":"MONTH(Tableau1[[#This Row],[Date]])","v":1},null,null,null,null,null,null,null,{"$f":"MONTH(Tableau2[[#This Row],[Date]])","v":1}]
[256,{"$f":"MONTH(Tableau1[[#This Row],[Date]])","v":1},null,null,null,null,null,null,null,{"$f":"MONTH(Tableau2[[#This Row],[Date]])","v":1}]
[257,{"$f":"MONTH(Tableau1[[#This Row],[Date]])","v":1},null,null,null,null,null,null,null,{"$f":"MONTH(Tableau2[[#This Row],[Date]])","v":1}]
[258,{"$f":"MONTH(Tableau1[[#This Row],[Date]])","v":1},null,null,null,null,null,null,null,{"$f":"MONTH(Tableau2[[#This Row],[Date]])","v":1}]
[259,{"$f":"MONTH(Tableau1[[#This Row],[Date]])","v":1},null,null,null,null,null,null,null,{"$f":"MONTH(Tableau2[[#This Row],[Date]])","v":1}]
[260,{"$f":"MONTH(Tableau1[[#This Row],[Date]])","v":1},null,null,null,null,null,null,null,{"$f":"MONTH(Tableau2[[#This Row],[Date]])","v":1}]
[261,{"$f":"MONTH(Tableau1[[#This Row],[Date]])","v":1},null,null,null,null,null,null,null,{"$f":"MONTH(Tableau2[[#This Row],[Date]])","v":1}]
[262,{"$f":"MONTH(Tableau1[[#This Row],[Date]])","v":1},null,null,null,null,null,null,null,{"$f":"MONTH(Tableau2[[#This Row],[Date]])","v":1}]
[263,{"$f":"MONTH(Tableau1[[#This Row],[Date]])","v":1},null,null,null,null,null,null,null,{"$f":"MONTH(Tableau2[[#This Row],[Date]])","v":1}]
[264,{"$f":"MONTH(Tableau1[[#This Row],[Date]])","v":1},null,null,null,null,null,null,null,{"$f":"MONTH(Tableau2[[#This Row],[Date]])","v":1}]
[265,{"$f":"MONTH(Tableau1[[#This Row],[Date]])","v":1},null,null,null,null,null,null,null,{"$f":"MONTH(Tableau2[[#This Row],[Date]])","v":1}]
[266,{"$f":"MONTH(Tableau1[[#This Row],[Date]])","v":1},null,null,null,null,null,null,null,{"$f":"MONTH(Tableau2[[#This Row],[Date]])","v":1}]
[267,{"$f":"MONTH(Tableau1[[#This Row],[Date]])","v":1},null,null,null,null,null,null,null,{"$f":"MONTH(Tableau2[[#This Row],[Date]])","v":1}]
[268,{"$f":"MONTH(Tableau1[[#This Row],[Date]])","v":1},null,null,null,null,null,null,null,{"$f":"MONTH(Tableau2[[#This Row],[Date]])","v":1}]
[269,{"$f":"MONTH(Tableau1[[#This Row],[Date]])","v":1},null,null,null,null,null,null,null,{"$f":"MONTH(Tableau2[[#This Row],[Date]])","v":1}]
[270,{"$f":"MONTH(Tableau1[[#This Row],[Date]])","v":1},null,null,null,null,null,null,null,{"$f":"MONTH(Tableau2[[#This Row],[Date]])","v":1}]
[271,{"$f":"MONTH(Tableau1[[#This Row],[Date]])","v":1},null,null,null,null,null,null,null,{"$f":"MONTH(Tableau2[[#This Row],[Date]])","v":1}]
[272,{"$f":"MONTH(Tableau1[[#This Row],[Date]])","v":1},null,null,null,null,null,null,null,{"$f":"MONTH(Tableau2[[#This Row],[Date]])","v":1}]
[273,{"$f":"MONTH(Tableau1[[#This Row],[Date]])","v":1},null,null,null,null,null,null,null,{"$f":"MONTH(Tableau2[[#This Row],[Date]])","v":1}]
[274,{"$f":"MONTH(Tableau1[[#This Row],[Date]])","v":1},null,null,null,null,null,null,null,{"$f":"MONTH(Tableau2[[#This Row],[Date]])","v":1}]
[275,{"$f":"MONTH(Tableau1[[#This Row],[Date]])","v":1},null,null,null,null,null,null,null,{"$f":"MONTH(Tableau2[[#This Row],[Date]])","v":1}]
[276,{"$f":"MONTH(Tableau1[[#This Row],[Date]])","v":1},null,null,null,null,null,null,null,{"$f":"MONTH(Tableau2[[#This Row],[Date]])","v":1}]
[277,{"$f":"MONTH(Tableau1[[#This Row],[Date]])","v":1},null,null,null,null,null,null,null,{"$f":"MONTH(Tableau2[[#This Row],[Date]])","v":1}]
[278,{"$f":"MONTH(Tableau1[[#This Row],[Date]])","v":1},null,null,null,null,null,null,null,{"$f":"MONTH(Tableau2[[#This Row],[Date]])","v":1}]
[279,{"$f":"MONTH(Tableau1[[#This Row],[Date]])","v":1},null,null,null,null,null,null,null,{"$f":"MONTH(Tableau2[[#This Row],[Date]])","v":1}]
[280,{"$f":"MONTH(Tableau1[[#This Row],[Date]])","v":1},null,null,null,null,null,null,null,{"$f":"MONTH(Tableau2[[#This Row],[Date]])","v":1}]
[281,{"$f":"MONTH(Tableau1[[#This Row],[Date]])","v":1},null,null,null,null,null,null,null,{"$f":"MONTH(Tableau2[[#This Row],[Date]])","v":1}]
[282,{"$f":"MONTH(Tableau1[[#This Row],[Date]])","v":1},null,null,null,null,null,null,null,{"$f":"MONTH(Tableau2[[#This Row],[Date]])","v":1}]
[283,{"$f":"MONTH(Tableau1[[#This Row],[Date]])","v":1},null,null,null,null,null,null,null,{"$f":"MONTH(Tableau2[[#This Row],[Date]])","v":1}]
[284,{"$f":"MONTH(Tableau1[[#This Row],[Date]])","v":1},null,null,null,null,null,null,null,{"$f":"MONTH(Tableau2[[#This Row],[Date]])","v":1}]
[285,{"$f":"MONTH(Tableau1[[#This Row],[Date]])","v":1},null,null,null,null,null,null,null,{"$f":"MONTH(Tableau2[[#This Row],[Date]])","v":1}]
[286,{"$f":"MONTH(Tableau1[[#This Row],[Date]])","v":1},null,null,null,null,null,null,null,{"$f":"MONTH(Tableau2[[#This Row],[Date]])","v":1}]
[287,{"$f":"MONTH(Tableau1[[#This Row],[Date]])","v":1},null,null,null,null,null,null,null,{"$f":"MONTH(Tableau2[[#This Row],[Date]])","v":1}]
[288,{"$f":"MONTH(Tableau1[[#This Row],[Date]])","v":1},null,null,null,null,null,null,null,{"$f":"MONTH(Tableau2[[#This Row],[Date]])","v":1}]
[289,{"$f":"MONTH(Tableau1[[#This Row],[Date]])","v":1},null,null,null,null,null,null,null,{"$f":"MONTH(Tableau2[[#This Row],[Date]])","v":1}]
[290,{"$f":"MONTH(Tableau1[[#This Row],[Date]])","v":1},null,null,null,null,null,null,null,{"$f":"MONTH(Tableau2[[#This Row],[Date]])","v":1}]
[291,{"$f":"MONTH(Tableau1[[#This Row],[Date]])","v":1},null,null,null,null,null,null,null,{"$f":"MONTH(Tableau2[[#This Row],[Date]])","v":1}]
[292,{"$f":"MONTH(Tableau1[[#This Row],[Date]])","v":1},null,null,null,null,null,null,null,{"$f":"MONTH(Tableau2[[#This Row],[Date]])","v":1}]
[293,{"$f":"MONTH(Tableau1[[#This Row],[Date]])","v":1},null,null,null,null,null,null,null,{"$f":"MONTH(Tableau2[[#This Row],[Date]])","v":1}]
[294,{"$f":"MONTH(Tableau1[[#This Row],[Date]])","v":1},null,null,null,null,null,null,null,{"$f":"MONTH(Tableau2[[#This Row],[Date]])","v":1}]
[295,{"$f":"MONTH(Tableau1[[#This Row],[Date]])","v":1},null,null,null,null,null,null,null,{"$f":"MONTH(Tableau2[[#This Row],[Date]])","v":1}]
[296,{"$f":"MONTH(Tableau1[[#This Row],[Date]])","v":1},null,null,null,null,null,null,null,{"$f":"MONTH(Tableau2[[#This Row],[Date]])","v":1}]
[297,{"$f":"MONTH(Tableau1[[#This Row],[Date]])","v":1},null,null,null,null,null,null,null,{"$f":"MONTH(Tableau2[[#This Row],[Date]])","v":1}]
[298,{"$f":"MONTH(Tableau1[[#This Row],[Date]])","v":1},null,null,null,null,null,null,null,{"$f":"MONTH(Tableau2[[#This Row],[Date]])","v":1}]
[299,{"$f":"MONTH(Tableau1[[#This Row],[Date]])","v":1},null,null,null,null,null,null,null,{"$f":"MONTH(Tableau2[[#This Row],[Date]])","v":1}]
[300,{"$f":"MONTH(Tableau1[[#This Row],[Date]])","v":1},null,null,null,null,null,null,null,{"$f":"MONTH(Tableau2[[#This Row],[Date]])","v":1}]
[301,{"$f":"MONTH(Tableau1[[#This Row],[Date]])","v":1},null,null,null,null,null,null,null,{"$f":"MONTH(Tableau2[[#This Row],[Date]])","v":1}]
[302,{"$f":"MONTH(Tableau1[[#This Row],[Date]])","v":1},null,null,null,null,null,null,null,{"$f":"MONTH(Tableau2[[#This Row],[Date]])","v":1}]
[303,{"$f":"MONTH(Tableau1[[#This Row],[Date]])","v":1},null,null,null,null,null,null,null,{"$f":"MONTH(Tableau2[[#This Row],[Date]])","v":1}]
[304,{"$f":"MONTH(Tableau1[[#This Row],[Date]])","v":1},null,null,null,null,null,null,null,{"$f":"MONTH(Tableau2[[#This Row],[Date]])","v":1}]
[305,{"$f":"MONTH(Tableau1[[#This Row],[Date]])","v":1},null,null,null,null,null,null,null,{"$f":"MONTH(Tableau2[[#This Row],[Date]])","v":1}]
[306,{"$f":"MONTH(Tableau1[[#This Row],[Date]])","v":1},null,null,null,null,null,null,null,{"$f":"MONTH(Tableau2[[#This Row],[Date]])","v":1}]
[307,{"$f":"MONTH(Tableau1[[#This Row],[Date]])","v":1},null,null,null,null,null,null,null,{"$f":"MONTH(Tableau2[[#This Row],[Date]])","v":1}]
[308,{"$f":"MONTH(Tableau1[[#This Row],[Date]])","v":1},null,null,null,null,null,null,null,{"$f":"MONTH(Tableau2[[#This Row],[Date]])","v":1}]
[309,{"$f":"MONTH(Tableau1[[#This Row],[Date]])","v":1},null,null,null,null,null,null,null,{"$f":"MONTH(Tableau2[[#This Row],[Date]])","v":1}]
[310,{"$f":"MONTH(Tableau1[[#This Row],[Date]])","v":1},null,null,null,null,null,null,null,{"$f":"MONTH(Tableau2[[#This Row],[Date]])","v":1}]
[311,{"$f":"MONTH(Tableau1[[#This Row],[Date]])","v":1},null,null,null,null,null,null,null,{"$f":"MONTH(Tableau2[[#This Row],[Date]])","v":1}]
[312,{"$f":"MONTH(Tableau1[[#This Row],[Date]])","v":1},null,null,null,null,null,null,null,{"$f":"MONTH(Tableau2[[#This Row],[Date]])","v":1}]
[313,{"$f":"MONTH(Tableau1[[#This Row],[Date]])","v":1},null,null,null,null,null,null,null,{"$f":"MONTH(Tableau2[[#This Row],[Date]])","v":1}]
[314,{"$f":"MONTH(Tableau1[[#This Row],[Date]])","v":1},null,null,null,null,null,null,null,{"$f":"MONTH(Tableau2[[#This Row],[Date]])","v":1}]
[315,{"$f":"MONTH(Tableau1[[#This Row],[Date]])","v":1},null,null,null,null,null,null,null,{"$f":"MONTH(Tableau2[[#This Row],[Date]])","v":1}]
[316,{"$f":"MONTH(Tableau1[[#This Row],[Date]])","v":1},null,null,null,null,null,null,null,{"$f":"MONTH(Tableau2[[#This Row],[Date]])","v":1}]
[317,{"$f":"MONTH(Tableau1[[#This Row],[Date]])","v":1},null,null,null,null,null,null,null,{"$f":"MONTH(Tableau2[[#This Row],[Date]])","v":1}]
[318,{"$f":"MONTH(Tableau1[[#This Row],[Date]])","v":1},null,null,null,null,null,null,null,{"$f":"MONTH(Tableau2[[#This Row],[Date]])","v":1}]
[319,{"$f":"MONTH(Tableau1[[#This Row],[Date]])","v":1},null,null,null,null,null,null,null,{"$f":"MONTH(Tableau2[[#This Row],[Date]])","v":1}]
[320,{"$f":"MONTH(Tableau1[[#This Row],[Date]])","v":1},null,null,null,null,null,null,null,{"$f":"MONTH(Tableau2[[#This Row],[Date]])","v":1}]
[321,{"$f":"MONTH(Tableau1[[#This Row],[Date]])","v":1},null,null,null,null,null,null,null,{"$f":"MONTH(Tableau2[[#This Row],[Date]])","v":1}]
[322,{"$f":"MONTH(Tableau1[[#This Row],[Date]])","v":1},null,null,null,null,null,null,null,{"$f":"MONTH(Tableau2[[#This Row],[Date]])","v":1}]
[323,{"$f":"MONTH(Tableau1[[#This Row],[Date]])","v":1},null,null,null,null,null,null,null,{"$f":"MONTH(Tableau2[[#This Row],[Date]])","v":1}]
[324,{"$f":"MONTH(Tableau1[[#This Row],[Date]])","v":1},null,null,null,null,null,null,null,{"$f":"MONTH(Tableau2[[#This Row],[Date]])","v":1}]
[325,{"$f":"MONTH(Tableau1[[#This Row],[Date]])","v":1},null,null,null,null,null,null,null,{"$f":"MONTH(Tableau2[[#This Row],[Date]])","v":1}]
[326,{"$f":"MONTH(Tableau1[[#This Row],[Date]])","v":1},null,null,null,null,null,null,null,{"$f":"MONTH(Tableau2[[#This Row],[Date]])","v":1}]
[327,{"$f":"MONTH(Tableau1[[#This Row],[Date]])","v":1},null,null,null,null,null,null,null,{"$f":"MONTH(Tableau2[[#This Row],[Date]])","v":1}]
[328,{"$f":"MONTH(Tableau1[[#This Row],[Date]])","v":1},null,null,null,null,null,null,null,{"$f":"MONTH(Tableau2[[#This Row],[Date]])","v":1}]
[329,{"$f":"MONTH(Tableau1[[#This Row],[Date]])","v":1},null,null,null,null,null,null,null,{"$f":"MONTH(Tableau2[[#This Row],[Date]])","v":1}]
[330,{"$f":"MONTH(Tableau1[[#This Row],[Date]])","v":1},null,null,null,null,null,null,null,{"$f":"MONTH(Tableau2[[#This Row],[Date]])","v":1}]
[331,{"$f":"MONTH(Tableau1[[#This Row],[Date]])","v":1},null,null,null,null,null,null,null,{"$f":"MONTH(Tableau2[[#This Row],[Date]])","v":1}]
[332,{"$f":"MONTH(Tableau1[[#This Row],[Date]])","v":1},null,null,null,null,null,null,null,{"$f":"MONTH(Tableau2[[#This Row],[Date]])","v":1}]
[333,{"$f":"MONTH(Tableau1[[#This Row],[Date]])","v":1},null,null,null,null,null,null,null,{"$f":"MONTH(Tableau2[[#This Row],[Date]])","v":1}]
[334,{"$f":"MONTH(Tableau1[[#This Row],[Date]])","v":1},null,null,null,null,null,null,null,{"$f":"MONTH(Tableau2[[#This Row],[Date]])","v":1}]
[335,{"$f":"MONTH(Tableau1[[#This Row],[Date]])","v":1},null,null,null,null,null,null,null,{"$f":"MONTH(Tableau2[[#This Row],[Date]])","v":1}]
[336,{"$f":"MONTH(Tableau1[[#This Row],[Date]])","v":1},null,null,null,null,null,null,null,{"$f":"MONTH(Tableau2[[#This Row],[Date]])","v":1}]
[337,{"$f":"MONTH(Tableau1[[#This Row],[Date]])","v":1},null,null,null,null,null,null,null,{"$f":"MONTH(Tableau2[[#This Row],[Date]])","v":1}]
[338,{"$f":"MONTH(Tableau1[[#This Row],[Date]])","v":1},null,null,null,null,null,null,null,{"$f":"MONTH(Tableau2[[#This Row],[Date]])","v":1}]
[339,{"$f":"MONTH(Tableau1[[#This Row],[Date]])","v":1},null,null,null,null,null,null,null,{"$f":"MONTH(Tableau2[[#This Row],[Date]])","v":1}]
[340,{"$f":"MONTH(Tableau1[[#This Row],[Date]])","v":1},null,null,null,null,null,null,null,{"$f":"MONTH(Tableau2[[#This Row],[Date]])","v":1}]
[341,{"$f":"MONTH(Tableau1[[#This Row],[Date]])","v":1},null,null,null,null,null,null,null,{"$f":"MONTH(Tableau2[[#This Row],[Date]])","v":1}]
[342,{"$f":"MONTH(Tableau1[[#This Row],[Date]])","v":1},null,null,null,null,null,null,null,{"$f":"MONTH(Tableau2[[#This Row],[Date]])","v":1}]
[343,{"$f":"MONTH(Tableau1[[#This Row],[Date]])","v":1},null,null,null,null,null,null,null,{"$f":"MONTH(Tableau2[[#This Row],[Date]])","v":1}]
[344,{"$f":"MONTH(Tableau1[[#This Row],[Date]])","v":1},null,null,null,null,null,null,null,{"$f":"MONTH(Tableau2[[#This Row],[Date]])","v":1}]
[345,{"$f":"MONTH(Tableau1[[#This Row],[Date]])","v":1},null,null,null,null,null,null,null,{"$f":"MONTH(Tableau2[[#This Row],[Date]])","v":1}]
[346,{"$f":"MONTH(Tableau1[[#This Row],[Date]])","v":1},null,null,null,null,null,null,null,{"$f":"MONTH(Tableau2[[#This Row],[Date]])","v":1}]
[347,{"$f":"MONTH(Tableau1[[#This Row],[Date]])","v":1},null,null,null,null,null,null,null,{"$f":"MONTH(Tableau2[[#This Row],[Date]])","v":1}]
[348,{"$f":"MONTH(Tableau1[[#This Row],[Date]])","v":1},null,null,null,null,null,null,null,{"$f":"MONTH(Tableau2[[#This Row],[Date]])","v":1}]
[349,{"$f":"MONTH(Tableau1[[#This Row],[Date]])","v":1},null,null,null,null,null,null,null,{"$f":"MONTH(Tableau2[[#This Row],[Date]])","v":1}]
[350,{"$f":"MONTH(Tableau1[[#This Row],[Date]])","v":1},null,null,null,null,null,null,null,{"$f":"MONTH(Tableau2[[#This Row],[Date]])","v":1}]
[351,{"$f":"MONTH(Tableau1[[#This Row],[Date]])","v":1},null,null,null,null,null,null,null,{"$f":"MONTH(Tableau2[[#This Row],[Date]])","v":1}]
[352,{"$f":"MONTH(Tableau1[[#This Row],[Date]])","v":1},null,null,null,null,null,null,null,{"$f":"MONTH(Tableau2[[#This Row],[Date]])","v":1}]
[353,{"$f":"MONTH(Tableau1[[#This Row],[Date]])","v":1},null,null,null,null,null,null,null,{"$f":"MONTH(Tableau2[[#This Row],[Date]])","v":1}]
[354,{"$f":"MONTH(Tableau1[[#This Row],[Date]])","v":1},null,null,null,null,null,null,null,{"$f":"MONTH(Tableau2[[#This Row],[Date]])","v":1}]
[355,{"$f":"MONTH(Tableau1[[#This Row],[Date]])","v":1},null,null,null,null,null,null,null,{"$f":"MONTH(Tableau2[[#This Row],[Date]])","v":1}]
[356,{"$f":"MONTH(Tableau1[[#This Row],[Date]])","v":1},null,null,null,null,null,null,null,{"$f":"MONTH(Tableau2[[#This Row],[Date]])","v":1}]
[357,{"$f":"MONTH(Tableau1[[#This Row],[Date]])","v":1},null,null,null,null,null,null,null,{"$f":"MONTH(Tableau2[[#This Row],[Date]])","v":1}]
[358,{"$f":"MONTH(Tableau1[[#This Row],[Date]])","v":1},null,null,null,null,null,null,null,{"$f":"MONTH(Tableau2[[#This Row],[Date]])","v":1}]
[359,{"$f":"MONTH(Tableau1[[#This Row],[Date]])","v":1},null,null,null,null,null,null,null,{"$f":"MONTH(Tableau2[[#This Row],[Date]])","v":1}]
[360,{"$f":"MONTH(Tableau1[[#This Row],[Date]])","v":1},null,null,null,null,null,null,null,{"$f":"MONTH(Tableau2[[#This Row],[Date]])","v":1}]
[361,{"$f":"MONTH(Tableau1[[#This Row],[Date]])","v":1},null,null,null,null,null,null,null,{"$f":"MONTH(Tableau2[[#This Row],[Date]])","v":1}]
[362,{"$f":"MONTH(Tableau1[[#This Row],[Date]])","v":1},null,null,null,null,null,null,null,{"$f":"MONTH(Tableau2[[#This Row],[Date]])","v":1}]
[363,{"$f":"MONTH(Tableau1[[#This Row],[Date]])","v":1},null,null,null,null,null,null,null,{"$f":"MONTH(Tableau2[[#This Row],[Date]])","v":1}]
[364,{"$f":"MONTH(Tableau1[[#This Row],[Date]])","v":1},null,null,null,null,null,null,null,{"$f":"MONTH(Tableau2[[#This Row],[Date]])","v":1}]
[365,{"$f":"MONTH(Tableau1[[#This Row],[Date]])","v":1},null,null,null,null,null,null,null,{"$f":"MONTH(Tableau2[[#This Row],[Date]])","v":1}]
[366,{"$f":"MONTH(Tableau1[[#This Row],[Date]])","v":1},null,null,null,null,null,null,null,{"$f":"MONTH(Tableau2[[#This Row],[Date]])","v":1}]
[367,{"$f":"MONTH(Tableau1[[#This Row],[Date]])","v":1},null,null,null,null,null,null,null,{"$f":"MONTH(Tableau2[[#This Row],[Date]])","v":1}]
[368,{"$f":"MONTH(Tableau1[[#This Row],[Date]])","v":1},null,null,null,null,null,null,null,{"$f":"MONTH(Tableau2[[#This Row],[Date]])","v":1}]
[369,{"$f":"MONTH(Tableau1[[#This Row],[Date]])","v":1},null,null,null,null,null,null,null,{"$f":"MONTH(Tableau2[[#This Row],[Date]])","v":1}]
[370,{"$f":"MONTH(Tableau1[[#This Row],[Date]])","v":1},null,null,null,null,null,null,null,{"$f":"MONTH(Tableau2[[#This Row],[Date]])","v":1}]
[371,{"$f":"MONTH(Tableau1[[#This Row],[Date]])","v":1},null,null,null,null,null,null,null,{"$f":"MONTH(Tableau2[[#This Row],[Date]])","v":1}]
[372,{"$f":"MONTH(Tableau1[[#This Row],[Date]])","v":1},null,null,null,null,null,null,null,{"$f":"MONTH(Tableau2[[#This Row],[Date]])","v":1}]
[373,{"$f":"MONTH(Tableau1[[#This Row],[Date]])","v":1},null,null,null,null,null,null,null,{"$f":"MONTH(Tableau2[[#This Row],[Date]])","v":1}]
[374,{"$f":"MONTH(Tableau1[[#This Row],[Date]])","v":1},null,null,null,null,null,null,null,{"$f":"MONTH(Tableau2[[#This Row],[Date]])","v":1}]
[375,{"$f":"MONTH(Tableau1[[#This Row],[Date]])","v":1},null,null,null,null,null,null,null,{"$f":"MONTH(Tableau2[[#This Row],[Date]])","v":1}]
[376,{"$f":"MONTH(Tableau1[[#This Row],[Date]])","v":1},null,null,null,null,null,null,null,{"$f":"MONTH(Tableau2[[#This Row],[Date]])","v":1}]
[377,{"$f":"MONTH(Tableau1[[#This Row],[Date]])","v":1},null,null,null,null,null,null,null,{"$f":"MONTH(Tableau2[[#This Row],[Date]])","v":1}]
[378,{"$f":"MONTH(Tableau1[[#This Row],[Date]])","v":1},null,null,null,null,null,null,null,{"$f":"MONTH(Tableau2[[#This Row],[Date]])","v":1}]
[379,{"$f":"MONTH(Tableau1[[#This Row],[Date]])","v":1},null,null,null,null,null,null,null,{"$f":"MONTH(Tableau2[[#This Row],[Date]])","v":1}]
[380,{"$f":"MONTH(Tableau1[[#This Row],[Date]])","v":1},null,null,null,null,null,null,null,{"$f":"MONTH(Tableau2[[#This Row],[Date]])","v":1}]
[381,{"$f":"MONTH(Tableau1[[#This Row],[Date]])","v":1},null,null,null,null,null,null,null,{"$f":"MONTH(Tableau2[[#This Row],[Date]])","v":1}]
[382,{"$f":"MONTH(Tableau1[[#This Row],[Date]])","v":1},null,null,null,null,null,null,null,{"$f":"MONTH(Tableau2[[#This Row],[Date]])","v":1}]
[383,{"$f":"MONTH(Tableau1[[#This Row],[Date]])","v":1},null,null,null,null,null,null,null,{"$f":"MONTH(Tableau2[[#This Row],[Date]])","v":1}]
[384,{"$f":"MONTH(Tableau1[[#This Row],[Date]])","v":1},null,null,null,null,null,null,null,{"$f":"MONTH(Tableau2[[#This Row],[Date]])","v":1}]
[385,{"$f":"MONTH(Tableau1[[#This Row],[Date]])","v":1},null,null,null,null,null,null,null,{"$f":"MONTH(Tableau2[[#This Row],[Date]])","v":1}]
[386,{"$f":"MONTH(Tableau1[[#This Row],[Date]])","v":1},null,null,null,null,null,null,null,{"$f":"MONTH(Tableau2[[#This Row],[Date]])","v":1}]
[387,{"$f":"MONTH(Tableau1[[#This Row],[Date]])","v":1},null,null,null,null,null,null,null,{"$f":"MONTH(Tableau2[[#This Row],[Date]])","v":1}]
[388,{"$f":"MONTH(Tableau1[[#This Row],[Date]])","v":1},null,null,null,null,null,null,null,{"$f":"MONTH(Tableau2[[#This Row],[Date]])","v":1}]
[389,{"$f":"MONTH(Tableau1[[#This Row],[Date]])","v":1},null,null,null,null,null,null,null,{"$f":"MONTH(Tableau2[[#This Row],[Date]])","v":1}]
[390,{"$f":"MONTH(Tableau1[[#This Row],[Date]])","v":1},null,null,null,null,null,null,null,{"$f":"MONTH(Tableau2[[#This Row],[Date]])","v":1}]
[391,{"$f":"MONTH(Tableau1[[#This Row],[Date]])","v":1},null,null,null,null,null,null,null,{"$f":"MONTH(Tableau2[[#This Row],[Date]])","v":1}]
[392,{"$f":"MONTH(Tableau1[[#This Row],[Date]])","v":1},null,null,null,null,null,null,null,{"$f":"MONTH(Tableau2[[#This Row],[Date]])","v":1}]
[393,{"$f":"MONTH(Tableau1[[#This Row],[Date]])","v":1},null,null,null,null,null,null,null,{"$f":"MONTH(Tableau2[[#This Row],[Date]])","v":1}]
[394,{"$f":"MONTH(Tableau1[[#This Row],[Date]])","v":1},null,null,null,null,null,null,null,{"$f":"MONTH(Tableau2[[#This Row],[Date]])","v":1}]
[395,{"$f":"MONTH(Tableau1[[#This Row],[Date]])","v":1},null,null,null,null,null,null,null,{"$f":"MONTH(Tableau2[[#This Row],[Date]])","v":1}]
[396,{"$f":"MONTH(Tableau1[[#This Row],[Date]])","v":1},null,null,null,null,null,null,null,{"$f":"MONTH(Tableau2[[#This Row],[Date]])","v":1}]
[397,{"$f":"MONTH(Tableau1[[#This Row],[Date]])","v":1},null,null,null,null,null,null,null,{"$f":"MONTH(Tableau2[[#This Row],[Date]])","v":1}]
[398,{"$f":"MONTH(Tableau1[[#This Row],[Date]])","v":1},null,null,null,null,null,null,null,{"$f":"MONTH(Tableau2[[#This Row],[Date]])","v":1}]
[399,{"$f":"MONTH(Tableau1[[#This Row],[Date]])","v":1},null,null,null,null,null,null,null,{"$f":"MONTH(Tableau2[[#This Row],[Date]])","v":1}]
[400,{"$f":"MONTH(Tableau1[[#This Row],[Date]])","v":1},null,null,null,null,null,null,null,{"$f":"MONTH(Tableau2[[#This Row],[Date]])","v":1}]
[401,{"$f":"MONTH(Tableau1[[#This Row],[Date]])","v":1},null,null,null,null,null,null,null,{"$f":"MONTH(Tableau2[[#This Row],[Date]])","v":1}]
[402,{"$f":"MONTH(Tableau1[[#This Row],[Date]])","v":1},null,null,null,null,null,null,null,{"$f":"MONTH(Tableau2[[#This Row],[Date]])","v":1}]
[403,{"$f":"MONTH(Tableau1[[#This Row],[Date]])","v":1},null,null,null,null,null,null,null,{"$f":"MONTH(Tableau2[[#This Row],[Date]])","v":1}]
[404,{"$f":"MONTH(Tableau1[[#This Row],[Date]])","v":1},null,null,null,null,null,null,null,{"$f":"MONTH(Tableau2[[#This Row],[Date]])","v":1}]
[405,{"$f":"MONTH(Tableau1[[#This Row],[Date]])","v":1},null,null,null,null,null,null,null,{"$f":"MONTH(Tableau2[[#This Row],[Date]])","v":1}]
[406,{"$f":"MONTH(Tableau1[[#This Row],[Date]])","v":1},null,null,null,null,null,null,null,{"$f":"MONTH(Tableau2[[#This Row],[Date]])","v":1}]
[407,{"$f":"MONTH(Tableau1[[#This Row],[Date]])","v":1},null,null,null,null,null,null,null,{"$f":"MONTH(Tableau2[[#This Row],[Date]])","v":1}]
[408,{"$f":"MONTH(Tableau1[[#This Row],[Date]])","v":1},null,null,null,null,null,null,null,{"$f":"MONTH(Tableau2[[#This Row],[Date]])","v":1}]
[409,{"$f":"MONTH(Tableau1[[#This Row],[Date]])","v":1},null,null,null,null,null,null,null,{"$f":"MONTH(Tableau2[[#This Row],[Date]])","v":1}]
[410,{"$f":"MONTH(Tableau1[[#This Row],[Date]])","v":1},null,null,null,null,null,null,null,{"$f":"MONTH(Tableau2[[#This Row],[Date]])","v":1}]
[411,{"$f":"MONTH(Tableau1[[#This Row],[Date]])","v":1},null,null,null,null,null,null,null,{"$f":"MONTH(Tableau2[[#This Row],[Date]])","v":1}]
[412,{"$f":"MONTH(Tableau1[[#This Row],[Date]])","v":1},null,null,null,null,null,null,null,{"$f":"MONTH(Tableau2[[#This Row],[Date]])","v":1}]
[413,{"$f":"MONTH(Tableau1[[#This Row],[Date]])","v":1},null,null,null,null,null,null,null,{"$f":"MONTH(Tableau2[[#This Row],[Date]])","v":1}]
[414,{"$f":"MONTH(Tableau1[[#This Row],[Date]])","v":1},null,null,null,null,null,null,null,{"$f":"MONTH(Tableau2[[#This Row],[Date]])","v":1}]
[415,{"$f":"MONTH(Tableau1[[#This Row],[Date]])","v":1},null,null,null,null,null,null,null,{"$f":"MONTH(Tableau2[[#This Row],[Date]])","v":1}]
[416,{"$f":"MONTH(Tableau1[[#This Row],[Date]])","v":1},null,null,null,null,null,null,null,{"$f":"MONTH(Tableau2[[#This Row],[Date]])","v":1}]
[417,{"$f":"MONTH(Tableau1[[#This Row],[Date]])","v":1},null,null,null,null,null,null,null,{"$f":"MONTH(Tableau2[[#This Row],[Date]])","v":1}]
[418,{"$f":"MONTH(Tableau1[[#This Row],[Date]])","v":1},null,null,null,null,null,null,null,{"$f":"MONTH(Tableau2[[#This Row],[Date]])","v":1}]
[419,{"$f":"MONTH(Tableau1[[#This Row],[Date]])","v":1},null,null,null,null,null,null,null,{"$f":"MONTH(Tableau2[[#This Row],[Date]])","v":1}]
[420,{"$f":"MONTH(Tableau1[[#This Row],[Date]])","v":1},null,null,null,null,null,null,null,{"$f":"MONTH(Tableau2[[#This Row],[Date]])","v":1}]
[421,{"$f":"MONTH(Tableau1[[#This Row],[Date]])","v":1},null,null,null,null,null,null,null,{"$f":"MONTH(Tableau2[[#This Row],[Date]])","v":1}]
[422,{"$f":"MONTH(Tableau1[[#This Row],[Date]])","v":1},null,null,null,null,null,null,null,{"$f":"MONTH(Tableau2[[#This Row],[Date]])","v":1}]
[423,{"$f":"MONTH(Tableau1[[#This Row],[Date]])","v":1},null,null,null,null,null,null,null,{"$f":"MONTH(Tableau2[[#This Row],[Date]])","v":1}]
[424,{"$f":"MONTH(Tableau1[[#This Row],[Date]])","v":1},null,null,null,null,null,null,null,{"$f":"MONTH(Tableau2[[#This Row],[Date]])","v":1}]
[425,{"$f":"MONTH(Tableau1[[#This Row],[Date]])","v":1},null,null,null,null,null,null,null,{"$f":"MONTH(Tableau2[[#This Row],[Date]])","v":1}]
[426,{"$f":"MONTH(Tableau1[[#This Row],[Date]])","v":1},null,null,null,null,null,null,null,{"$f":"MONTH(Tableau2[[#This Row],[Date]])","v":1}]
[427,{"$f":"MONTH(Tableau1[[#This Row],[Date]])","v":1},null,null,null,null,null,null,null,{"$f":"MONTH(Tableau2[[#This Row],[Date]])","v":1}]
[428,{"$f":"MONTH(Tableau1[[#This Row],[Date]])","v":1},null,null,null,null,null,null,null,{"$f":"MONTH(Tableau2[[#This Row],[Date]])","v":1}]
[429,{"$f":"MONTH(Tableau1[[#This Row],[Date]])","v":1},null,null,null,null,null,null,null,{"$f":"MONTH(Tableau2[[#This Row],[Date]])","v":1}]
[430,{"$f":"MONTH(Tableau1[[#This Row],[Date]])","v":1},null,null,null,null,null,null,null,{"$f":"MONTH(Tableau2[[#This Row],[Date]])","v":1}]
[431,{"$f":"MONTH(Tableau1[[#This Row],[Date]])","v":1},null,null,null,null,null,null,null,{"$f":"MONTH(Tableau2[[#This Row],[Date]])","v":1}]
[432,{"$f":"MONTH(Tableau1[[#This Row],[Date]])","v":1},null,null,null,null,null,null,null,{"$f":"MONTH(Tableau2[[#This Row],[Date]])","v":1}]
[433,{"$f":"MONTH(Tableau1[[#This Row],[Date]])","v":1},null,null,null,null,null,null,null,{"$f":"MONTH(Tableau2[[#This Row],[Date]])","v":1}]
[434,{"$f":"MONTH(Tableau1[[#This Row],[Date]])","v":1},null,null,null,null,null,null,null,{"$f":"MONTH(Tableau2[[#This Row],[Date]])","v":1}]
[435,{"$f":"MONTH(Tableau1[[#This Row],[Date]])","v":1},null,null,null,null,null,null,null,{"$f":"MONTH(Tableau2[[#This Row],[Date]])","v":1}]
[436,{"$f":"MONTH(Tableau1[[#This Row],[Date]])","v":1},null,null,null,null,null,null,null,{"$f":"MONTH(Tableau2[[#This Row],[Date]])","v":1}]
[437,{"$f":"MONTH(Tableau1[[#This Row],[Date]])","v":1},null,null,null,null,null,null,null,{"$f":"MONTH(Tableau2[[#This Row],[Date]])","v":1}]
[438,{"$f":"MONTH(Tableau1[[#This Row],[Date]])","v":1},null,null,null,null,null,null,null,{"$f":"MONTH(Tableau2[[#This Row],[Date]])","v":1}]
[439,{"$f":"MONTH(Tableau1[[#This Row],[Date]])","v":1},null,null,null,null,null,null,null,{"$f":"MONTH(Tableau2[[#This Row],[Date]])","v":1}]
[440,{"$f":"MONTH(Tableau1[[#This Row],[Date]])","v":1},null,null,null,null,null,null,null,{"$f":"MONTH(Tableau2[[#This Row],[Date]])","v":1}]
[441,{"$f":"MONTH(Tableau1[[#This Row],[Date]])","v":1},null,null,null,null,null,null,null,{"$f":"MONTH(Tableau2[[#This Row],[Date]])","v":1}]
[442,{"$f":"MONTH(Tableau1[[#This Row],[Date]])","v":1},null,null,null,null,null,null,null,{"$f":"MONTH(Tableau2[[#This Row],[Date]])","v":1}]
[443,{"$f":"MONTH(Tableau1[[#This Row],[Date]])","v":1},null,null,null,null,null,null,null,{"$f":"MONTH(Tableau2[[#This Row],[Date]])","v":1}]
[444,{"$f":"MONTH(Tableau1[[#This Row],[Date]])","v":1},null,null,null,null,null,null,null,{"$f":"MONTH(Tableau2[[#This Row],[Date]])","v":1}]
[445,{"$f":"MONTH(Tableau1[[#This Row],[Date]])","v":1},null,null,null,null,null,null,null,{"$f":"MONTH(Tableau2[[#This Row],[Date]])","v":1}]
[446,{"$f":"MONTH(Tableau1[[#This Row],[Date]])","v":1},null,null,null,null,null,null,null,{"$f":"MONTH(Tableau2[[#This Row],[Date]])","v":1}]
[447,{"$f":"MONTH(Tableau1[[#This Row],[Date]])","v":1},null,null,null,null,null,null,null,{"$f":"MONTH(Tableau2[[#This Row],[Date]])","v":1}]
[448,{"$f":"MONTH(Tableau1[[#This Row],[Date]])","v":1},null,null,null,null,null,null,null,{"$f":"MONTH(Tableau2[[#This Row],[Date]])","v":1}]
[449,{"$f":"MONTH(Tableau1[[#This Row],[Date]])","v":1},null,null,null,null,null,null,null,{"$f":"MONTH(Tableau2[[#This Row],[Date]])","v":1}]
[450,{"$f":"MONTH(Tableau1[[#This Row],[Date]])","v":1},null,null,null,null,null,null,null,{"$f":"MONTH(Tableau2[[#This Row],[Date]])","v":1}]
[451,{"$f":"MONTH(Tableau1[[#This Row],[Date]])","v":1},null,null,null,null,null,null,null,{"$f":"MONTH(Tableau2[[#This Row],[Date]])","v":1}]
[452,{"$f":"MONTH(Tableau1[[#This Row],[Date]])","v":1},null,null,null,null,null,null,null,{"$f":"MONTH(Tableau2[[#This Row],[Date]])","v":1}]
[453,{"$f":"MONTH(Tableau1[[#This Row],[Date]])","v":1},null,null,null,null,null,null,null,{"$f":"MONTH(Tableau2[[#This Row],[Date]])","v":1}]
[454,{"$f":"MONTH(Tableau1[[#This Row],[Date]])","v":1},null,null,null,null,null,null,null,{"$f":"MONTH(Tableau2[[#This Row],[Date]])","v":1}]
[455,{"$f":"MONTH(Tableau1[[#This Row],[Date]])","v":1},null,null,null,null,null,null,null,{"$f":"MONTH(Tableau2[[#This Row],[Date]])","v":1}]
[456,{"$f":"MONTH(Tableau1[[#This Row],[Date]])","v":1},null,null,null,null,null,null,null,{"$f":"MONTH(Tableau2[[#This Row],[Date]])","v":1}]
[457,{"$f":"MONTH(Tableau1[[#This Row],[Date]])","v":1},null,null,null,null,null,null,null,{"$f":"MONTH(Tableau2[[#This Row],[Date]])","v":1}]
[458,{"$f":"MONTH(Tableau1[[#This Row],[Date]])","v":1},null,null,null,null,null,null,null,{"$f":"MONTH(Tableau2[[#This Row],[Date]])","v":1}]
[459,{"$f":"MONTH(Tableau1[[#This Row],[Date]])","v":1},null,null,null,null,null,null,null,{"$f":"MONTH(Tableau2[[#This Row],[Date]])","v":1}]
[460,{"$f":"MONTH(Tableau1[[#This Row],[Date]])","v":1},null,null,null,null,null,null,null,{"$f":"MONTH(Tableau2[[#This Row],[Date]])","v":1}]
[461,{"$f":"MONTH(Tableau1[[#This Row],[Date]])","v":1},null,null,null,null,null,null,null,{"$f":"MONTH(Tableau2[[#This Row],[Date]])","v":1}]
[462,{"$f":"MONTH(Tableau1[[#This Row],[Date]])","v":1},null,null,null,null,null,null,null,{"$f":"MONTH(Tableau2[[#This Row],[Date]])","v":1}]
[463,{"$f":"MONTH(Tableau1[[#This Row],[Date]])","v":1},null,null,null,null,null,null,null,{"$f":"MONTH(Tableau2[[#This Row],[Date]])","v":1}]
[464,{"$f":"MONTH(Tableau1[[#This Row],[Date]])","v":1},null,null,null,null,null,null,null,{"$f":"MONTH(Tableau2[[#This Row],[Date]])","v":1}]
[465,{"$f":"MONTH(Tableau1[[#This Row],[Date]])","v":1},null,null,null,null,null,null,null,{"$f":"MONTH(Tableau2[[#This Row],[Date]])","v":1}]
[466,{"$f":"MONTH(Tableau1[[#This Row],[Date]])","v":1},null,null,null,null,null,null,null,{"$f":"MONTH(Tableau2[[#This Row],[Date]])","v":1}]
[467,{"$f":"MONTH(Tableau1[[#This Row],[Date]])","v":1},null,null,null,null,null,null,null,{"$f":"MONTH(Tableau2[[#This Row],[Date]])","v":1}]
[468,{"$f":"MONTH(Tableau1[[#This Row],[Date]])","v":1},null,null,null,null,null,null,null,{"$f":"MONTH(Tableau2[[#This Row],[Date]])","v":1}]
[469,{"$f":"MONTH(Tableau1[[#This Row],[Date]])","v":1},null,null,null,null,null,null,null,{"$f":"MONTH(Tableau2[[#This Row],[Date]])","v":1}]
[470,{"$f":"MONTH(Tableau1[[#This Row],[Date]])","v":1},null,null,null,null,null,null,null,{"$f":"MONTH(Tableau2[[#This Row],[Date]])","v":1}]
[471,{"$f":"MONTH(Tableau1[[#This Row],[Date]])","v":1},null,null,null,null,null,null,null,{"$f":"MONTH(Tableau2[[#This Row],[Date]])","v":1}]
[472,{"$f":"MONTH(Tableau1[[#This Row],[Date]])","v":1},null,null,null,null,null,null,null,{"$f":"MONTH(Tableau2[[#This Row],[Date]])","v":1}]
[473,{"$f":"MONTH(Tableau1[[#This Row],[Date]])","v":1},null,null,null,null,null,null,null,{"$f":"MONTH(Tableau2[[#This Row],[Date]])","v":1}]
[474,{"$f":"MONTH(Tableau1[[#This Row],[Date]])","v":1},null,null,null,null,null,null,null,{"$f":"MONTH(Tableau2[[#This Row],[Date]])","v":1}]
[475,{"$f":"MONTH(Tableau1[[#This Row],[Date]])","v":1},null,null,null,null,null,null,null,{"$f":"MONTH(Tableau2[[#This Row],[Date]])","v":1}]
[476,{"$f":"MONTH(Tableau1[[#This Row],[Date]])","v":1},null,null,null,null,null,null,null,{"$f":"MONTH(Tableau2[[#This Row],[Date]])","v":1}]
[477,{"$f":"MONTH(Tableau1[[#This Row],[Date]])","v":1},null,null,null,null,null,null,null,{"$f":"MONTH(Tableau2[[#This Row],[Date]])","v":1}]
[478,{"$f":"MONTH(Tableau1[[#This Row],[Date]])","v":1},null,null,null,null,null,null,null,{"$f":"MONTH(Tableau2[[#This Row],[Date]])","v":1}]
[479,{"$f":"MONTH(Tableau1[[#This Row],[Date]])","v":1},null,null,null,null,null,null,null,{"$f":"MONTH(Tableau2[[#This Row],[Date]])","v":1}]
[480,{"$f":"MONTH(Tableau1[[#This Row],[Date]])","v":1},null,null,null,null,null,null,null,{"$f":"MONTH(Tableau2[[#This Row],[Date]])","v":1}]
[481,{"$f":"MONTH(Tableau1[[#This Row],[Date]])","v":1},null,null,null,null,null,null,null,{"$f":"MONTH(Tableau2[[#This Row],[Date]])","v":1}]
[482,{"$f":"MONTH(Tableau1[[#This Row],[Date]])","v":1},null,null,null,null,null,null,null,{"$f":"MONTH(Tableau2[[#This Row],[Date]])","v":1}]
[483,{"$f":"MONTH(Tableau1[[#This Row],[Date]])","v":1},null,null,null,null,null,null,null,{"$f":"MONTH(Tableau2[[#This Row],[Date]])","v":1}]
[484,{"$f":"MONTH(Tableau1[[#This Row],[Date]])","v":1},null,null,null,null,null,null,null,{"$f":"MONTH(Tableau2[[#This Row],[Date]])","v":1}]
[485,{"$f":"MONTH(Tableau1[[#This Row],[Date]])","v":1},null,null,null,null,null,null,null,{"$f":"MONTH(Tableau2[[#This Row],[Date]])","v":1}]
[486,{"$f":"MONTH(Tableau1[[#This Row],[Date]])","v":1},null,null,null,null,null,null,null,{"$f":"MONTH(Tableau2[[#This Row],[Date]])","v":1}]
[487,{"$f":"MONTH(Tableau1[[#This Row],[Date]])","v":1},null,null,null,null,null,null,null,{"$f":"MONTH(Tableau2[[#This Row],[Date]])","v":1}]
[488,{"$f":"MONTH(Tableau1[[#This Row],[Date]])","v":1},null,null,null,null,null,null,null,{"$f":"MONTH(Tableau2[[#This Row],[Date]])","v":1}]
[489,{"$f":"MONTH(Tableau1[[#This Row],[Date]])","v":1},null,null,null,null,null,null,null,{"$f":"MONTH(Tableau2[[#This Row],[Date]])","v":1}]
[490,{"$f":"MONTH(Tableau1[[#This Row],[Date]])","v":1},null,null,null,null,null,null,null,{"$f":"MONTH(Tableau2[[#This Row],[Date]])","v":1}]
[491,{"$f":"MONTH(Tableau1[[#This Row],[Date]])","v":1},null,null,null,null,null,null,null,{"$f":"MONTH(Tableau2[[#This Row],[Date]])","v":1}]
[492,{"$f":"MONTH(Tableau1[[#This Row],[Date]])","v":1},null,null,null,null,null,null,null,{"$f":"MONTH(Tableau2[[#This Row],[Date]])","v":1}]
[493,{"$f":"MONTH(Tableau1[[#This Row],[Date]])","v":1},null,null,null,null,null,null,null,{"$f":"MONTH(Tableau2[[#This Row],[Date]])","v":1}]
[494,{"$f":"MONTH(Tableau1[[#This Row],[Date]])","v":1},null,null,null,null,null,null,null,{"$f":"MONTH(Tableau2[[#This Row],[Date]])","v":1}]
[495,{"$f":"MONTH(Tableau1[[#This Row],[Date]])","v":1},null,null,null,null,null,null,null,{"$f":"MONTH(Tableau2[[#This Row],[Date]])","v":1}]
[496,{"$f":"MONTH(Tableau1[[#This Row],[Date]])","v":1},null,null,null,null,null,null,null,{"$f":"MONTH(Tableau2[[#This Row],[Date]])","v":1}]
[497,{"$f":"MONTH(Tableau1[[#This Row],[Date]])","v":1},null,null,null,null,null,null,null,{"$f":"MONTH(Tableau2[[#This Row],[Date]])","v":1}]
[498,{"$f":"MONTH(Tableau1[[#This Row],[Date]])","v":1},null,null,null,null,null,null,null,{"$f":"MONTH(Tableau2[[#This Row],[Date]])","v":1}]
[499,{"$f":"MONTH(Tableau1[[#This Row],[Date]])","v":1},null,null,null,null,null,null,null,{"$f":"MONTH(Tableau2[[#This Row],[Date]])","v":1}]
[500,{"$f":"MONTH(Tableau1[[#This Row],[Date]])","v":1},null,null,null,null,null,null,null,{"$f":"MONTH(Tableau2[[#This Row],[Date]])","v":1}]
[501,{"$f":"MONTH(Tableau1[[#This Row],[Date]])","v":1},null,null,null,null,null,null,null,{"$f":"MONTH(Tableau2[[#This Row],[Date]])","v":1}]
[502,{"$f":"MONTH(Tableau1[[#This Row],[Date]])","v":1},null,null,null,null,null,null,null,{"$f":"MONTH(Tableau2[[#This Row],[Date]])","v":1}]
[503,{"$f":"MONTH(Tableau1[[#This Row],[Date]])","v":1},null,null,null,null,null,null,null,{"$f":"MONTH(Tableau2[[#This Row],[Date]])","v":1}]
[504,{"$f":"MONTH(Tableau1[[#This Row],[Date]])","v":1},null,null,null,null,null,null,null,{"$f":"MONTH(Tableau2[[#This Row],[Date]])","v":1}]
[505,{"$f":"MONTH(Tableau1[[#This Row],[Date]])","v":1},null,null,null,null,null,null,null,{"$f":"MONTH(Tableau2[[#This Row],[Date]])","v":1}]
[506,{"$f":"MONTH(Tableau1[[#This Row],[Date]])","v":1},null,null,null,null,null,null,null,{"$f":"MONTH(Tableau2[[#This Row],[Date]])","v":1}]
[507,{"$f":"MONTH(Tableau1[[#This Row],[Date]])","v":1},null,null,null,null,null,null,null,{"$f":"MONTH(Tableau2[[#This Row],[Date]])","v":1}]
[508,{"$f":"MONTH(Tableau1[[#This Row],[Date]])","v":1},null,null,null,null,null,null,null,{"$f":"MONTH(Tableau2[[#This Row],[Date]])","v":1}]
[509,{"$f":"MONTH(Tableau1[[#This Row],[Date]])","v":1},null,null,null,null,null,null,null,{"$f":"MONTH(Tableau2[[#This Row],[Date]])","v":1}]
[510,{"$f":"MONTH(Tableau1[[#This Row],[Date]])","v":1},null,null,null,null,null,null,null,{"$f":"MONTH(Tableau2[[#This Row],[Date]])","v":1}]
[511,{"$f":"MONTH(Tableau1[[#This Row],[Date]])","v":1},null,null,null,null,null,null,null,{"$f":"MONTH(Tableau2[[#This Row],[Date]])","v":1}]
[512,{"$f":"MONTH(Tableau1[[#This Row],[Date]])","v":1},null,null,null,null,null,null,null,{"$f":"MONTH(Tableau2[[#This Row],[Date]])","v":1}]
[513,{"$f":"MONTH(Tableau1[[#This Row],[Date]])","v":1},null,null,null,null,null,null,null,{"$f":"MONTH(Tableau2[[#This Row],[Date]])","v":1}]
[514,{"$f":"MONTH(Tableau1[[#This Row],[Date]])","v":1},null,null,null,null,null,null,null,{"$f":"MONTH(Tableau2[[#This Row],[Date]])","v":1}]
[515,{"$f":"MONTH(Tableau1[[#This Row],[Date]])","v":1},null,null,null,null,null,null,null,{"$f":"MONTH(Tableau2[[#This Row],[Date]])","v":1}]
[516,{"$f":"MONTH(Tableau1[[#This Row],[Date]])","v":1},null,null,null,null,null,null,null,{"$f":"MONTH(Tableau2[[#This Row],[Date]])","v":1}]
[517,{"$f":"MONTH(Tableau1[[#This Row],[Date]])","v":1},null,null,null,null,null,null,null,{"$f":"MONTH(Tableau2[[#This Row],[Date]])","v":1}]
[518,{"$f":"MONTH(Tableau1[[#This Row],[Date]])","v":1},null,null,null,null,null,null,null,{"$f":"MONTH(Tableau2[[#This Row],[Date]])","v":1}]
[519,{"$f":"MONTH(Tableau1[[#This Row],[Date]])","v":1},null,null,null,null,null,null,null,{"$f":"MONTH(Tableau2[[#This Row],[Date]])","v":1}]
[520,{"$f":"MONTH(Tableau1[[#This Row],[Date]])","v":1},null,null,null,null,null,null,null,{"$f":"MONTH(Tableau2[[#This Row],[Date]])","v":1}]
[521,{"$f":"MONTH(Tableau1[[#This Row],[Date]])","v":1},null,null,null,null,null,null,null,{"$f":"MONTH(Tableau2[[#This Row],[Date]])","v":1}]
[522,{"$f":"MONTH(Tableau1[[#This Row],[Date]])","v":1},null,null,null,null,null,null,null,{"$f":"MONTH(Tableau2[[#This Row],[Date]])","v":1}]
[523,{"$f":"MONTH(Tableau1[[#This Row],[Date]])","v":1},null,null,null,null,null,null,null,{"$f":"MONTH(Tableau2[[#This Row],[Date]])","v":1}]
[524,{"$f":"MONTH(Tableau1[[#This Row],[Date]])","v":1},null,null,null,null,null,null,null,{"$f":"MONTH(Tableau2[[#This Row],[Date]])","v":1}]
[525,{"$f":"MONTH(Tableau1[[#This Row],[Date]])","v":1},null,null,null,null,null,null,null,{"$f":"MONTH(Tableau2[[#This Row],[Date]])","v":1}]
[526,{"$f":"MONTH(Tableau1[[#This Row],[Date]])","v":1},null,null,null,null,null,null,null,{"$f":"MONTH(Tableau2[[#This Row],[Date]])","v":1}]
[527,{"$f":"MONTH(Tableau1[[#This Row],[Date]])","v":1},null,null,null,null,null,null,null,{"$f":"MONTH(Tableau2[[#This Row],[Date]])","v":1}]
[528,{"$f":"MONTH(Tableau1[[#This Row],[Date]])","v":1},null,null,null,null,null,null,null,{"$f":"MONTH(Tableau2[[#This Row],[Date]])","v":1}]
[529,{"$f":"MONTH(Tableau1[[#This Row],[Date]])","v":1},null,null,null,null,null,null,null,{"$f":"MONTH(Tableau2[[#This Row],[Date]])","v":1}]
[530,{"$f":"MONTH(Tableau1[[#This Row],[Date]])","v":1},null,null,null,null,null,null,null,{"$f":"MONTH(Tableau2[[#This Row],[Date]])","v":1}]
[531,{"$f":"MONTH(Tableau1[[#This Row],[Date]])","v":1},null,null,null,null,null,null,null,{"$f":"MONTH(Tableau2[[#This Row],[Date]])","v":1}]
[532,{"$f":"MONTH(Tableau1[[#This Row],[Date]])","v":1},null,null,null,null,null,null,null,{"$f":"MONTH(Tableau2[[#This Row],[Date]])","v":1}]
[533,{"$f":"MONTH(Tableau1[[#This Row],[Date]])","v":1},null,null,null,null,null,null,null,{"$f":"MONTH(Tableau2[[#This Row],[Date]])","v":1}]
[534,{"$f":"MONTH(Tableau1[[#This Row],[Date]])","v":1},null,null,null,null,null,null,null,{"$f":"MONTH(Tableau2[[#This Row],[Date]])","v":1}]
[535,{"$f":"MONTH(Tableau1[[#This Row],[Date]])","v":1},null,null,null,null,null,null,null,{"$f":"MONTH(Tableau2[[#This Row],[Date]])","v":1}]
[536,{"$f":"MONTH(Tableau1[[#This Row],[Date]])","v":1},null,null,null,null,null,null,null,{"$f":"MONTH(Tableau2[[#This Row],[Date]])","v":1}]
[537,{"$f":"MONTH(Tableau1[[#This Row],[Date]])","v":1},null,null,null,null,null,null,null,{"$f":"MONTH(Tableau2[[#This Row],[Date]])","v":1}]
[538,{"$f":"MONTH(Tableau1[[#This Row],[Date]])","v":1},null,null,null,null,null,null,null,{"$f":"MONTH(Tableau2[[#This Row],[Date]])","v":1}]
[539,{"$f":"MONTH(Tableau1[[#This Row],[Date]])","v":1},null,null,null,null,null,null,null,{"$f":"MONTH(Tableau2[[#This Row],[Date]])","v":1}]
[540,{"$f":"MONTH(Tableau1[[#This Row],[Date]])","v":1},null,null,null,null,null,null,null,{"$f":"MONTH(Tableau2[[#This Row],[Date]])","v":1}]
[541,{"$f":"MONTH(Tableau1[[#This Row],[Date]])","v":1},null,null,null,null,null,null,null,{"$f":"MONTH(Tableau2[[#This Row],[Date]])","v":1}]
[542,{"$f":"MONTH(Tableau1[[#This Row],[Date]])","v":1},null,null,null,null,null,null,null,{"$f":"MONTH(Tableau2[[#This Row],[Date]])","v":1}]
[543,{"$f":"MONTH(Tableau1[[#This Row],[Date]])","v":1},null,null,null,null,null,null,null,{"$f":"MONTH(Tableau2[[#This Row],[Date]])","v":1}]
[544,{"$f":"MONTH(Tableau1[[#This Row],[Date]])","v":1},null,null,null,null,null,null,null,{"$f":"MONTH(Tableau2[[#This Row],[Date]])","v":1}]
[545,{"$f":"MONTH(Tableau1[[#This Row],[Date]])","v":1},null,null,null,null,null,null,null,{"$f":"MONTH(Tableau2[[#This Row],[Date]])","v":1}]
[546,{"$f":"MONTH(Tableau1[[#This Row],[Date]])","v":1},null,null,null,null,null,null,null,{"$f":"MONTH(Tableau2[[#This Row],[Date]])","v":1}]
[547,{"$f":"MONTH(Tableau1[[#This Row],[Date]])","v":1},null,null,null,null,null,null,null,{"$f":"MONTH(Tableau2[[#This Row],[Date]])","v":1}]
[548,{"$f":"MONTH(Tableau1[[#This Row],[Date]])","v":1},null,null,null,null,null,null,null,{"$f":"MONTH(Tableau2[[#This Row],[Date]])","v":1}]
[549,{"$f":"MONTH(Tableau1[[#This Row],[Date]])","v":1},null,null,null,null,null,null,null,{"$f":"MONTH(Tableau2[[#This Row],[Date]])","v":1}]
[550,{"$f":"MONTH(Tableau1[[#This Row],[Date]])","v":1},null,null,null,null,null,null,null,{"$f":"MONTH(Tableau2[[#This Row],[Date]])","v":1}]
[551,{"$f":"MONTH(Tableau1[[#This Row],[Date]])","v":1},null,null,null,null,null,null,null,{"$f":"MONTH(Tableau2[[#This Row],[Date]])","v":1}]
[552,{"$f":"MONTH(Tableau1[[#This Row],[Date]])","v":1},null,null,null,null,null,null,null,{"$f":"MONTH(Tableau2[[#This Row],[Date]])","v":1}]
[553,{"$f":"MONTH(Tableau1[[#This Row],[Date]])","v":1},null,null,null,null,null,null,null,{"$f":"MONTH(Tableau2[[#This Row],[Date]])","v":1}]
[554,{"$f":"MONTH(Tableau1[[#This Row],[Date]])","v":1},null,null,null,null,null,null,null,{"$f":"MONTH(Tableau2[[#This Row],[Date]])","v":1}]
[555,{"$f":"MONTH(Tableau1[[#This Row],[Date]])","v":1},null,null,null,null,null,null,null,{"$f":"MONTH(Tableau2[[#This Row],[Date]])","v":1}]
[556,{"$f":"MONTH(Tableau1[[#This Row],[Date]])","v":1},null,null,null,null,null,null,null,{"$f":"MONTH(Tableau2[[#This Row],[Date]])","v":1}]
[557,{"$f":"MONTH(Tableau1[[#This Row],[Date]])","v":1},null,null,null,null,null,null,null,{"$f":"MONTH(Tableau2[[#This Row],[Date]])","v":1}]
[558,{"$f":"MONTH(Tableau1[[#This Row],[Date]])","v":1},null,null,null,null,null,null,null,{"$f":"MONTH(Tableau2[[#This Row],[Date]])","v":1}]
[559,{"$f":"MONTH(Tableau1[[#This Row],[Date]])","v":1},null,null,null,null,null,null,null,{"$f":"MONTH(Tableau2[[#This Row],[Date]])","v":1}]
[560,{"$f":"MONTH(Tableau1[[#This Row],[Date]])","v":1},null,null,null,null,null,null,null,{"$f":"MONTH(Tableau2[[#This Row],[Date]])","v":1}]
[561,{"$f":"MONTH(Tableau1[[#This Row],[Date]])","v":1},null,null,null,null,null,null,null,{"$f":"MONTH(Tableau2[[#This Row],[Date]])","v":1}]
[562,{"$f":"MONTH(Tableau1[[#This Row],[Date]])","v":1},null,null,null,null,null,null,null,{"$f":"MONTH(Tableau2[[#This Row],[Date]])","v":1}]
[563,{"$f":"MONTH(Tableau1[[#This Row],[Date]])","v":1},null,null,null,null,null,null,null,{"$f":"MONTH(Tableau2[[#This Row],[Date]])","v":1}]
[564,{"$f":"MONTH(Tableau1[[#This Row],[Date]])","v":1},null,null,null,null,null,null,null,{"$f":"MONTH(Tableau2[[#This Row],[Date]])","v":1}]
[565,{"$f":"MONTH(Tableau1[[#This Row],[Date]])","v":1},null,null,null,null,null,null,null,{"$f":"MONTH(Tableau2[[#This Row],[Date]])","v":1}]
[566,{"$f":"MONTH(Tableau1[[#This Row],[Date]])","v":1},null,null,null,null,null,null,null,{"$f":"MONTH(Tableau2[[#This Row],[Date]])","v":1}]
[567,{"$f":"MONTH(Tableau1[[#This Row],[Date]])","v":1},null,null,null,null,null,null,null,{"$f":"MONTH(Tableau2[[#This Row],[Date]])","v":1}]
[568,{"$f":"MONTH(Tableau1[[#This Row],[Date]])","v":1},null,null,null,null,null,null,null,{"$f":"MONTH(Tableau2[[#This Row],[Date]])","v":1}]
[569,{"$f":"MONTH(Tableau1[[#This Row],[Date]])","v":1},null,null,null,null,null,null,null,{"$f":"MONTH(Tableau2[[#This Row],[Date]])","v":1}]
[570,{"$f":"MONTH(Tableau1[[#This Row],[Date]])","v":1},null,null,null,null,null,null,null,{"$f":"MONTH(Tableau2[[#This Row],[Date]])","v":1}]
[571,{"$f":"MONTH(Tableau1[[#This Row],[Date]])","v":1},null,null,null,null,null,null,null,{"$f":"MONTH(Tableau2[[#This Row],[Date]])","v":1}]
[572,{"$f":"MONTH(Tableau1[[#This Row],[Date]])","v":1},null,null,null,null,null,null,null,{"$f":"MONTH(Tableau2[[#This Row],[Date]])","v":1}]
[573,{"$f":"MONTH(Tableau1[[#This Row],[Date]])","v":1},null,null,null,null,null,null,null,{"$f":"MONTH(Tableau2[[#This Row],[Date]])","v":1}]
[574,{"$f":"MONTH(Tableau1[[#This Row],[Date]])","v":1},null,null,null,null,null,null,null,{"$f":"MONTH(Tableau2[[#This Row],[Date]])","v":1}]
[575,{"$f":"MONTH(Tableau1[[#This Row],[Date]])","v":1},null,null,null,null,null,null,null,{"$f":"MONTH(Tableau2[[#This Row],[Date]])","v":1}]
[576,{"$f":"MONTH(Tableau1[[#This Row],[Date]])","v":1},null,null,null,null,null,null,null,{"$f":"MONTH(Tableau2[[#This Row],[Date]])","v":1}]
[577,{"$f":"MONTH(Tableau1[[#This Row],[Date]])","v":1},null,null,null,null,null,null,null,{"$f":"MONTH(Tableau2[[#This Row],[Date]])","v":1}]
[578,{"$f":"MONTH(Tableau1[[#This Row],[Date]])","v":1},null,null,null,null,null,null,null,{"$f":"MONTH(Tableau2[[#This Row],[Date]])","v":1}]
[579,{"$f":"MONTH(Tableau1[[#This Row],[Date]])","v":1},null,null,null,null,null,null,null,{"$f":"MONTH(Tableau2[[#This Row],[Date]])","v":1}]
[580,{"$f":"MONTH(Tableau1[[#This Row],[Date]])","v":1},null,null,null,null,null,null,null,{"$f":"MONTH(Tableau2[[#This Row],[Date]])","v":1}]
[581,{"$f":"MONTH(Tableau1[[#This Row],[Date]])","v":1},null,null,null,null,null,null,null,{"$f":"MONTH(Tableau2[[#This Row],[Date]])","v":1}]
[582,{"$f":"MONTH(Tableau1[[#This Row],[Date]])","v":1},null,null,null,null,null,null,null,{"$f":"MONTH(Tableau2[[#This Row],[Date]])","v":1}]
[583,{"$f":"MONTH(Tableau1[[#This Row],[Date]])","v":1},null,null,null,null,null,null,null,{"$f":"MONTH(Tableau2[[#This Row],[Date]])","v":1}]
[584,{"$f":"MONTH(Tableau1[[#This Row],[Date]])","v":1},null,null,null,null,null,null,null,{"$f":"MONTH(Tableau2[[#This Row],[Date]])","v":1}]
[585,{"$f":"MONTH(Tableau1[[#This Row],[Date]])","v":1},null,null,null,null,null,null,null,{"$f":"MONTH(Tableau2[[#This Row],[Date]])","v":1}]
[586,{"$f":"MONTH(Tableau1[[#This Row],[Date]])","v":1},null,null,null,null,null,null,null,{"$f":"MONTH(Tableau2[[#This Row],[Date]])","v":1}]
[587,{"$f":"MONTH(Tableau1[[#This Row],[Date]])","v":1},null,null,null,null,null,null,null,{"$f":"MONTH(Tableau2[[#This Row],[Date]])","v":1}]
[588,{"$f":"MONTH(Tableau1[[#This Row],[Date]])","v":1},null,null,null,null,null,null,null,{"$f":"MONTH(Tableau2[[#This Row],[Date]])","v":1}]
[589,{"$f":"MONTH(Tableau1[[#This Row],[Date]])","v":1},null,null,null,null,null,null,null,{"$f":"MONTH(Tableau2[[#This Row],[Date]])","v":1}]
[590,{"$f":"MONTH(Tableau1[[#This Row],[Date]])","v":1},null,null,null,null,null,null,null,{"$f":"MONTH(Tableau2[[#This Row],[Date]])","v":1}]
[591,{"$f":"MONTH(Tableau1[[#This Row],[Date]])","v":1},null,null,null,null,null,null,null,{"$f":"MONTH(Tableau2[[#This Row],[Date]])","v":1}]
[592,{"$f":"MONTH(Tableau1[[#This Row],[Date]])","v":1},null,null,null,null,null,null,null,{"$f":"MONTH(Tableau2[[#This Row],[Date]])","v":1}]
[593,{"$f":"MONTH(Tableau1[[#This Row],[Date]])","v":1},null,null,null,null,null,null,null,{"$f":"MONTH(Tableau2[[#This Row],[Date]])","v":1}]
[594,{"$f":"MONTH(Tableau1[[#This Row],[Date]])","v":1},null,null,null,null,null,null,null,{"$f":"MONTH(Tableau2[[#This Row],[Date]])","v":1}]
[595,{"$f":"MONTH(Tableau1[[#This Row],[Date]])","v":1},null,null,null,null,null,null,null,{"$f":"MONTH(Tableau2[[#This Row],[Date]])","v":1}]
[596,{"$f":"MONTH(Tableau1[[#This Row],[Date]])","v":1},null,null,null,null,null,null,null,{"$f":"MONTH(Tableau2[[#This Row],[Date]])","v":1}]
[597,{"$f":"MONTH(Tableau1[[#This Row],[Date]])","v":1},null,null,null,null,null,null,null,{"$f":"MONTH(Tableau2[[#This Row],[Date]])","v":1}]
[598,{"$f":"MONTH(Tableau1[[#This Row],[Date]])","v":1},null,null,null,null,null,null,null,{"$f":"MONTH(Tableau2[[#This Row],[Date]])","v":1}]
[599,{"$f":"MONTH(Tableau1[[#This Row],[Date]])","v":1},null,null,null,null,null,null,null,{"$f":"MONTH(Tableau2[[#This Row],[Date]])","v":1}]
[600,{"$f":"MONTH(Tableau1[[#This Row],[Date]])","v":1},null,null,null,null,null,null,null,{"$f":"MONTH(Tableau2[[#This Row],[Date]])","v":1}]

{"sheet":"📊 Synthèse","index":2,"n_rows":31,"n_cols":5,"rows_kept":31,"cut":false,"hidden":false,"merged":[[0,0,0,1],[0,2,0,8],[12,1,12,7]]}
[{"$f":"'👩🏻‍🏫 Bienvenue !'!K7","v":0},null,{"$f":"\"Tableau de bord de \"&'👩🏻‍🏫 Bienvenue !'!I12","v":"Tableau de bord de "}]
[]
[null,"Votre synthèse",{"$f":"'👩🏻‍🏫 Bienvenue !'!I16","v":0}]
[]
[null,"Chiffre d'affaires",{"$f":"SUM(Tableau1[Montant])","v":0}]
[]
[null,"Dépenses",{"$f":"SUM(Tableau2[Montant])","v":0}]
[]
[null,"Résultat",{"$f":"C5-C7","v":0}]
[]
[null,"👩🏻‍🏫",{"$f":"IF(C9>=0,\"Bravo, vous faites du profit ! 👍\",\"Vous perdez de l'argent, encore un effort ! 💪\")","v":"Bravo, vous faites du profit ! 👍"}]
[]
[null,"Ce contenu est soumis au droit d’auteur et est la propriété de Comptes & Formules. Toute représentation ou reproduction non autorisée est passible d’une action en contrefaçon. "]
[]
[]
[null,"En détail"]
[]
[null,{"$f":"'👩🏻‍🏫 Bienvenue !'!I16","v":0},"Recettes","Dépenses","Profit"]
[null,"Janvier",{"$f":"coulisses!C2","v":0},{"$f":"coulisses!D2","v":0},{"$f":"coulisses!E2","v":0}]
[null,"Février",{"$f":"coulisses!C3","v":0},{"$f":"coulisses!D3","v":0},{"$f":"coulisses!E3","v":0}]
[null,"Mars",{"$f":"coulisses!C4","v":0},{"$f":"coulisses!D4","v":0},{"$f":"coulisses!E4","v":0}]
[null,"Avril",{"$f":"coulisses!C5","v":0},{"$f":"coulisses!D5","v":0},{"$f":"coulisses!E5","v":0}]
[null,"Mai",{"$f":"coulisses!C6","v":0},{"$f":"coulisses!D6","v":0},{"$f":"coulisses!E6","v":0}]
[null,"Juin",{"$f":"coulisses!C7","v":0},{"$f":"coulisses!D7","v":0},{"$f":"coulisses!E7","v":0}]
[null,"Juillet",{"$f":"coulisses!C8","v":0},{"$f":"coulisses!D8","v":0},{"$f":"coulisses!E8","v":0}]
[null,"Août",{"$f":"coulisses!C9","v":0},{"$f":"coulisses!D9","v":0},{"$f":"coulisses!E9","v":0}]
[null,"Septembre",{"$f":"coulisses!C10","v":0},{"$f":"coulisses!D10","v":0},{"$f":"coulisses!E10","v":0}]
[null,"Octobre",{"$f":"coulisses!C11","v":0},{"$f":"coulisses!D11","v":0},{"$f":"coulisses!E11","v":0}]
[null,"Novembre",{"$f":"coulisses!C12","v":0},{"$f":"coulisses!D12","v":0},{"$f":"coulisses!E12","v":0}]
[null,"Décembre",{"$f":"coulisses!C13","v":0},{"$f":"coulisses!D13","v":0},{"$f":"coulisses!E13","v":0}]
[null,"TOTAL",{"$f":"SUM(C19:C30)","v":0},{"$f":"SUM(D19:D30)","v":0},0]

{"sheet":"🧾 Facture","index":3,"n_rows":41,"n_cols":13,"rows_kept":41,"cut":false,"hidden":false,"merged":[[16,7,17,7],[16,1,17,1],[16,8,17,8],[45,1,45,8],[24,1,24,2],[24,6,24,8],[28,2,28,8],[36,1,37,8],[44,1,44,8],[21,2,21,5],[16,2,17,5],[18,2,18,5],[19,2,19,5],[20,2,20,5],[16,6,17,6]]}
[]
[null,null,null,null,null,null,"FACTURE N° ",null,{"$f":"IFERROR(VLOOKUP($M$19,'💶 Recettes et dépenses'!A6:H157,5,FALSE),\"\")","v":0}]
[]
[null,"Votre nom"]
[null,"Votre adresse"]
[null,"Votre adresse"]
[null,"Votre adresse",null,null,null,null,{"$f":"IFERROR(VLOOKUP($M$19,'💶 Recettes et dépenses'!A6:H157,6,FALSE),\"\")","v":0}]
[null,null,null,null,null,null,"Adresse du client"]
[null,null,null,null,null,null,"Adresse du client"]
[null,"SIRET : ",null,null,null,null,"Adresse du client"]
[]
[]
[]
[]
[null,null,null,null,null,null,null,"À (lieu), le",{"$f":"TODAY()","v":"2025-12-15"}]
[]
[null,"Date","Libellé",null,null,null,"Qté","PU","Montant"]
[]
[null,{"$f":"IFERROR(VLOOKUP(M19,'💶 Recettes et dépenses'!A:H,3,FALSE),\"\")","v":"00:00:00"},{"$f":"IFERROR(VLOOKUP(M19,'💶 Recettes et dépenses'!A:H,7,FALSE),\"\")","v":0},null,null,null,1,{"$f":"IFERROR(I19/G19,\"\")","v":0},{"$f":"IFERROR(VLOOKUP(M19,'💶 Recettes et dépenses'!A:H,8,FALSE),\"\")","v":0},null,null,"Numéro recette",1]
[null,{"$f":"IFERROR(VLOOKUP(M20,'💶 Recettes et dépenses'!A:H,3,FALSE),\"\")","v":""},{"$f":"IFERROR(VLOOKUP(M20,'💶 Recettes et dépenses'!A:H,7,FALSE),\"\")","v":""},null,null,null,null,{"$f":"IFERROR(I20/G20,\"\")","v":""},{"$f":"IFERROR(VLOOKUP(M20,'💶 Recettes et dépenses'!A:H,8,FALSE),\"\")","v":""},null,null,"Numéro recette"]
[null,{"$f":"IFERROR(VLOOKUP(M21,'💶 Recettes et dépenses'!A:H,3,FALSE),\"\")","v":""},{"$f":"IFERROR(VLOOKUP(M21,'💶 Recettes et dépenses'!A:H,7,FALSE),\"\")","v":""},null,null,null,null,"",{"$f":"IFERROR(VLOOKUP(M21,'💶 Recettes et dépenses'!A:H,8,FALSE),\"\")","v":""},null,null,"Numéro recette"]
[null,{"$f":"IFERROR(VLOOKUP(M22,'💶 Recettes et dépenses'!A:H,3,FALSE),\"\")","v":""},{"$f":"IFERROR(VLOOKUP(M22,'💶 Recettes et dépenses'!A:H,7,FALSE),\"\")","v":""},null,null,null,null,"",{"$f":"IFERROR(VLOOKUP(M22,'💶 Recettes et dépenses'!A:H,8,FALSE),\"\")","v":""},null,null,"Numéro recette"]
[null,null,null,null,null,null,null,"TOTAL HT",{"$f":"SUM(I19:I22)","v":0}]
[null,null,null,null,null,null,null,null,null,null,null,"Comment personnaliser votre modèle de facture :"]
[null,null,null,null,null,null,"TVA non applicable, article 293B du code général des impôts",null,null,null,null,">> Ajoutez votre nom et adresse en haut à droite (et éventuellement votre logo)"]
[null,null,null,null,null,null,null,null,null,null,null,">> Ajoutez votre lieu d'émission de facture après \"À\""]
[null,"Conditions de règlement :",null,null,null,null,null,null,null,null,null,">> Ajoutez votre SIRET"]
[null,"Echéance de paiement :",null,null,null,null,null,null,null,null,null,">> Remplissez les Conditions de règlement et votre IBAN"]
[null,"IBAN :",null,null,null,null,null,null,null,null,null,">> Laissez ou supprimez la mention concernant le TVA et l'immatriculation selon votre situation"]
[null,null,null,null,null,null,null,null,null,null,null,">> Ajoutez le cas échéant les références de votre contrat de médiation"]
[null,null,null,null,null,null,null,null,null,null,null,">> Ajoutez toute autres mentions obligatoires "]
[null,null,null,null,null,null,null,null,null,null,null,">> Vous pouvez changer l'apparence, les couleurs, etc.. à votre convenance sans dépasser la colonne J et la ligne 41 et sans modifier le tableau"]
[null,null,null,null,null,null,null,null,null,null,null,"Comment générer une facture pour votre client :"]
[null,"> Taux de pénalités de retard : 11% et indemnité forfaitaire de 40€HT pour frais de recouvrement",null,null,null,null,null,null,null,null,null,">> Ajoutez l'adresse de votre client"]
[null,"> Pas d'escompte pour paiement anticipé",null,null,null,null,null,null,null,null,null,">> Saisissez les numéros des recettes à facturer ci-dessus (colonne A du livre de recettes)"]
[null,null,null,null,null,null,null,null,null,null,null,">> Vous pouvez soit saisir une ligne par produit dans le livre de recettes et les faire apparaître ici ou saisir les lignes à la main en effaçant les formules, il faut alors saisir seulement la première recette"]
[null,"Dispensé d'immatriculation au registre de commerce et des sociétés (RCS) et au répertoire des métiers (RM)",null,null,null,null,null,null,null,null,null,">> Modifiez les quantités si nécessaires"]
[null,null,null,null,null,null,null,null,null,null,null,">> Masquez les lignes vides si vous le souhaitez"]
[null,null,null,null,null,null,null,null,null,null,null,">> Précisez l'échéance de paiement "]
[null,null,null,null,null,null,null,null,null,null,null,">> Cliquez sur \"Export PDF\""]
[null,null,null,null,null,null,null,null,null,null,null,">>  Recherchez le PDF \"Facture nom du client\" s'il ne s'affiche pas sur le bureau ou dans le dossier où est sauvegardé ce fichier excel"]

{"sheet":"coulisses","index":4,"n_rows":36,"n_cols":9,"rows_kept":36,"cut":false,"hidden":true,"merged":[]}
[null,null,"Recettes","Dépenses","Profit",null,null,null,"CB"]
[1,"Janvier",{"$f":"SUMIF('💶 Recettes et dépenses'!B:B,coulisses!A2,'💶 Recettes et dépenses'!H:H)","v":0},{"$f":"SUMIF('💶 Recettes et dépenses'!J:J,coulisses!A2,'💶 Recettes et dépenses'!O:O)","v":0},{"$f":"C2-D2","v":0},null,null,null,"Espèces"]
[2,"Février",{"$f":"SUMIF('💶 Recettes et dépenses'!B:B,coulisses!A3,'💶 Recettes et dépenses'!H:H)","v":0},{"$f":"SUMIF('💶 Recettes et dépenses'!J:J,coulisses!A3,'💶 Recettes et dépenses'!O:O)","v":0},{"$f":"C3-D3","v":0},null,null,null,"Chèque"]
[3,"Mars",{"$f":"SUMIF('💶 Recettes et dépenses'!B:B,coulisses!A4,'💶 Recettes et dépenses'!H:H)","v":0},{"$f":"SUMIF('💶 Recettes et dépenses'!J:J,coulisses!A4,'💶 Recettes et dépenses'!O:O)","v":0},0,null,null,null,"Virement"]
[4,"Avril",{"$f":"SUMIF('💶 Recettes et dépenses'!B:B,coulisses!A5,'💶 Recettes et dépenses'!H:H)","v":0},{"$f":"SUMIF('💶 Recettes et dépenses'!J:J,coulisses!A5,'💶 Recettes et dépenses'!O:O)","v":0},0,null,null,null,"Paypal"]
[5,"Mai",{"$f":"SUMIF('💶 Recettes et dépenses'!B:B,coulisses!A6,'💶 Recettes et dépenses'!H:H)","v":0},{"$f":"SUMIF('💶 Recettes et dépenses'!J:J,coulisses!A6,'💶 Recettes et dépenses'!O:O)","v":0},0,null,null,null,"Stripe"]
[6,"Juin",{"$f":"SUMIF('💶 Recettes et dépenses'!B:B,coulisses!A7,'💶 Recettes et dépenses'!H:H)","v":0},{"$f":"SUMIF('💶 Recettes et dépenses'!J:J,coulisses!A7,'💶 Recettes et dépenses'!O:O)","v":0},0,null,null,null,"Autre"]
[7,"Juillet",{"$f":"SUMIF('💶 Recettes et dépenses'!B:B,coulisses!A8,'💶 Recettes et dépenses'!H:H)","v":0},{"$f":"SUMIF('💶 Recettes et dépenses'!J:J,coulisses!A8,'💶 Recettes et dépenses'!O:O)","v":0},0]
[8,"Août",{"$f":"SUMIF('💶 Recettes et dépenses'!B:B,coulisses!A9,'💶 Recettes et dépenses'!H:H)","v":0},{"$f":"SUMIF('💶 Recettes et dépenses'!J:J,coulisses!A9,'💶 Recettes et dépenses'!O:O)","v":0},0]
[9,"Septembre",{"$f":"SUMIF('💶 Recettes et dépenses'!B:B,coulisses!A10,'💶 Recettes et dépenses'!H:H)","v":0},{"$f":"SUMIF('💶 Recettes et dépenses'!J:J,coulisses!A10,'💶 Recettes et dépenses'!O:O)","v":0},0]
[10,"Octobre",{"$f":"SUMIF('💶 Recettes et dépenses'!B:B,coulisses!A11,'💶 Recettes et dépenses'!H:H)","v":0},{"$f":"SUMIF('💶 Recettes et dépenses'!J:J,coulisses!A11,'💶 Recettes et dépenses'!O:O)","v":0},0]
[11,"Novembre",{"$f":"SUMIF('💶 Recettes et dépenses'!B:B,coulisses!A12,'💶 Recettes et dépenses'!H:H)","v":0},{"$f":"SUMIF('💶 Recettes et dépenses'!J:J,coulisses!A12,'💶 Recettes et dépenses'!O:O)","v":0},0]
[12,"Décembre",{"$f":"SUMIF('💶 Recettes et dépenses'!B:B,coulisses!A13,'💶 Recettes et dépenses'!H:H)","v":0},{"$f":"SUMIF('💶 Recettes et dépenses'!J:J,coulisses!A13,'💶 Recettes et dépenses'!O:O)","v":0},0]
[]
[]
[]
["🧔🏽"]
["🧔🏼"]
["👩🏾‍🦰 "]
["👵🏻"]
["👱🏼"]
["👩🏿‍🦱"]
["🧑🏼‍🦱"]
["👨🏼‍🦰"]
["👩🏽‍🦱"]
["👩🏻‍🦱 "]
["👨🏾‍🦲"]
["👨🏼‍🦲"]
["👩🏼"]
["🧕🏾"]
["👩🏻"]
["👨🏿‍🦱"]
["👨🏻‍🦳"]
["👩🏾"]
["👨🏻‍🦱"]
["🧑🏾‍🦱"]